{"text_format":"1","workbook":"xlsx","n_sheets":7,"sheets":["様式1号（基本情報）","様式2号（認証チェックシート）","様式3号（今後の重点目標）","【評価】_②認証チェックシート","【評価】診断結果計算シート","【評価】第4号様式_結果通知書","（非表示シート）BCI列プルダウン"],"not_rendered":{"charts":4,"images":28,"macros":1,"external_links":3,"defined_names":28,"comments":3,"pivot_tables":0},"unopened":[],"bounds":{"document_bytes":16777216,"sheet_cells":100000,"rows_first":2000,"rows_last":500,"rows_between":2000,"halvings":0,"cell_chars":16384,"cell_head_chars":4096},"cells_cut":0,"cells_raw":0,"read":"whole","date_system":"1900"}

{"sheet":"様式1号（基本情報）","index":0,"n_rows":40,"n_cols":8,"rows_kept":40,"cut":false,"hidden":false,"merged":[[10,0,10,1],[10,2,10,5],[0,0,0,5],[6,0,6,5],[8,0,8,5],[9,0,9,1],[9,2,9,5],[15,0,15,1],[15,2,15,5],[19,0,19,1],[19,2,19,5],[18,0,18,1],[18,2,18,5],[16,0,17,1],[16,2,17,5],[11,0,11,1],[11,2,11,5],[12,0,12,1],[12,2,12,5],[13,0,14,1],[13,2,13,5],[14,2,14,5],[26,2,26,5],[20,0,21,1],[21,2,21,5],[22,0,23,1],[23,2,23,5],[24,0,24,1],[24,2,24,5],[25,0,25,1],[25,2,25,5],[26,0,26,1],[39,1,39,5],[30,0,30,5],[31,1,31,5],[32,1,32,5],[34,1,34,5],[35,1,35,5],[36,1,36,5],[37,1,37,5],[38,1,38,5],[33,1,33,5],[27,0,27,1],[27,2,27,5],[28,0,28,1],[28,2,28,5],[29,0,29,1],[29,2,29,5]]}
["豊田市SDGs認証　申請書"]
[]
[]
["申請日",null,null,null,null,"第3回様式 修正"]
[]
[]
["宣言：私たちは、豊田市SDGs認証に当たり申請書類に記載した取組について現在まで継続し、一層取組を向上しています。認証を取得した場合、認証事業者として、今回記載した内容をはじめとする先進的な取組をさらに進めていきます。"]
[]
["■申請者の概要",null,null,null,null,null,null,"\n"]
["フリガナ"]
["申請者名\n（法人名又は屋号等）"]
["フリガナ"]
["代表者役職・氏名"]
["業種"]
[null,null,"（総務省の日本標準産業分類を基に選択してください）"]
["主な事業内容"]
["会社規模",null,"該当する規模をお選びください。該当するものがない場合記載してください。"]
[]
["従業員数"]
["資本金"]
["所在地（本社）",null,"〒","　　　 -"]
[]
["所在地（事業所）\n※本社が豊田市以外の場合",null,"〒","　　　 -"]
[]
["担当者所属"]
["フリガナ"]
["連絡先担当者役職・氏名"]
["書類の送付先"]
["電話番号（連絡先）"]
["E-mail（連絡先）"]
["■確認事項（※全てに✔がつくことが申請条件となります。）"]
[null,"本制度は申請者による自己申告に基づいて判断するものであり、この適否の判断根拠となった取組が実際に行われていることの説明責任は申請者が負うことを承諾します。"]
[null,"申請の内容に虚偽記載があった場合は、認証が取り消される可能性があることを承諾します。"]
[null,"「豊田市働きやすい職場づくり推進事業所　確認・公表制度」における確認完了通知を受けました。／現在確認申請中であり、確認完了を受ける見込みです（確認完了に至らなかった場合、認証を受けられないことを承諾します。）。"]
[null,"法人市民税等の滞納はありません。"]
[null,"過去５年間に、重大悪質な事案で法令等に違反し、処分等を受けたことはありません。また、各種法令等に適合するとともに、法令等で定める義務規定を満たしています。"]
[null,"暴力団等の反社会的勢力に所属せず、これらのものと関係を有していません。"]
[null,"申請書の記載内容に相違がなく、認証を取得した場合に限り、企業の名称及び本申請書、取組実績等を市のHP等で公表、SDGs関連事業等で活用することに同意します。"]
[null,"申請書の記載内容は、匿名化処理を行った上で研究機関（大学等）や行政機関（国・県等）に情報提供を行う場合があることに同意します。"]
[null,"認証を取得した場合、認証を取得した事実やSDGsに関する自社の取組をホームページ・SNS等において広く発信することで、地域におけるSDGs達成に向けて積極的に寄与することに同意します。"]

{"sheet":"様式2号（認証チェックシート）","index":1,"n_rows":93,"n_cols":14,"rows_kept":93,"cut":false,"hidden":false,"merged":[[26,13,30,13],[24,1,25,1],[24,2,25,2],[24,3,25,3],[24,11,25,11],[14,13,16,13],[12,12,13,13],[13,4,13,5],[22,1,23,1],[22,2,23,2],[22,3,23,3],[22,11,23,11],[20,3,21,3],[17,1,21,1],[17,2,21,2],[17,3,19,3],[14,1,16,1],[14,2,16,2],[14,3,15,3],[14,11,16,11],[17,11,19,11],[31,1,32,1],[31,2,32,2],[31,3,32,3],[31,11,32,11],[33,11,35,11],[36,11,39,11],[26,1,30,1],[26,2,30,2],[26,3,30,3],[26,11,30,11],[45,1,50,1],[45,2,50,2],[45,3,47,3],[48,3,50,3],[40,1,44,1],[40,2,44,2],[40,11,44,11],[33,1,39,1],[33,2,39,2],[33,3,35,3],[36,3,39,3],[40,3,43,3],[57,1,59,1],[57,2,59,2],[57,3,59,3],[57,11,59,11],[55,1,56,1],[55,2,56,2],[55,3,56,3],[55,11,56,11],[51,1,54,1],[51,2,54,2],[51,3,54,3],[51,11,54,11],[68,1,70,1],[68,2,70,2],[68,3,70,3],[68,11,70,11],[64,1,67,1],[64,2,67,2],[64,3,67,3],[64,11,67,11],[60,1,63,1],[60,2,63,2],[60,3,61,3],[60,11,63,11],[62,3,63,3],[80,13,81,13],[75,1,76,1],[75,2,76,2],[75,3,76,3],[75,11,76,11],[80,11,81,11],[71,1,74,1],[71,2,74,2],[71,3,74,3],[71,11,74,11],[2,1,2,14],[9,1,9,14],[20,11,21,11],[45,11,47,11],[48,11,50,11],[90,1,92,1],[90,2,92,2],[90,3,92,3],[90,11,92,11],[90,13,92,13],[86,1,89,1],[86,2,89,2],[86,11,89,11],[87,3,89,3],[82,1,83,1],[82,2,83,2],[82,3,83,3],[82,11,83,11],[77,1,81,1],[77,2,81,2],[77,3,79,3],[77,11,79,11],[80,3,81,3],[80,12,81,12]]}
[null,null,null,null,null,null,null,null,null,null,null,null,null,{"$f":"'様式1号（基本情報）'!F4","v":"第3回様式 修正"}]
[null,null,null,null,null,null,null,null,null,null,null,null,null,{"$f":"'様式1号（基本情報）'!$C$11","v":0}]
[null,"豊田市SDGs認証　認証チェックシート"]
[]
[null,"豊田市の以下の制度のうち、表彰実績がある／参加しているものがありましたら、表彰を受けた年／参加した年をご記入ください。（複数回表彰実績がある場合は、直近の実績をご記入ください。）"]
[]
[null,null,"・豊田市はたらく人がイキイキ輝く事業所表彰",null,null,"【受賞の種類（チェック）　　　大賞　　　優秀賞　　　　イキイキ賞　　　　部門賞　表彰を受けた年：　　　　　　】　※令和３年度～令和５年度の受賞実績に限る"]
[null,null,"　※表彰による自動配点",null,null,"【　　希望する】 （自動配点を希望された場合、S1-S5のチェック／記述は一切不要となる代わり、一定の想定点数が付与されます）"]
[null,null,"・豊田市脱炭素スクール",null,null,"【　　修了実績がある　／修了した年：　　　　　　】"]
[null,"各評価項目について、実施している項目があればチェックをつけてください。（複数選択可）\nチェックを付けた取組について、具体的な取組内容やその実績などを「記述欄」にご記入ください（原則300文字以内）。なお、大項目やチェックの状況などによって、記述欄に記載が求められる内容は異なります。（【取得している認証】【取組の成果】　など）\n　　※複数の取組を実施している場合は、文字数制限の範囲内でなるべく複数の取組についてご記載ください。\n　　※【取組の成果】については、取組前と比べて改善した各種指標や数値なども含めてご記入ください。また、具体的な数値実績を把握していない・取組を始めたばかりでまだ実績が出ていないなどの場合には、記入しなくても構いません。"]
[]
[]
[null,"ID","分類","大項目",null,"小項目",null,null,null,null,null,"記述欄","関連するSDGsの目標・ターゲット"]
[null,null,null,null,"＊記載してある取組にチェック☑してください（複数選択可）。",null,"3号用項目（項目）","3号用項目（指標例）",null,null,null,"＊チェックを付けた取組の内、特に注力している／言及したい項目について、貴社の取組やその実績などを具体的にお書きください。（原則として300文字以内、URLの記載を要する欄のみ500文字以内）"]
["環境","E-1","環境マネジメント・コミュニケーション","●自社の事業活動に伴う環境負荷を低減するためのマネジメント体制を構築している。",null,"・継続的に環境面の活動を改善するための環境マネジメント体制を構築している。",{"$f":"D15","v":"●自社の事業活動に伴う環境負荷を低減するためのマネジメント体制を構築している。"},"環境マネジメント体制を構築している事業所の割合（全社に占める売上高、事業所数等の比率）等",false,2,{"$f":"IFERROR(VLOOKUP(TRUE,I15:J15,2,FALSE),0)","v":0},"【取得している認証がある場合】\n認証名／取得年月：\n\n【取組を公開している媒体がある場合】\n媒体名やURL等：\n\n【主な取組内容】\n※目標等をバックキャスティングで設定している場合は、その旨も記載\n","6.3、7.2、7.3、8.4、11.6、12.2、12.4、12.5、12.6、13.2、14.1、14.3、15.1、15.2"]
["環境",null,null,null,null,"・「ISO14001」、「エコアクション21」、「KES（環境マネジメントスタンダード）」など、環境マネジメントシステムに関する認証を取得している。",{"$f":"D15","v":"●自社の事業活動に伴う環境負荷を低減するためのマネジメント体制を構築している。"},"環境マネジメント体制を構築している事業所の割合（全社に占める売上高、事業所数等の比率）等",false,1,{"$f":"IFERROR(VLOOKUP(TRUE,I16:J16,2,FALSE),0)","v":0},null,"6.3、7.2、7.3、8.4、11.6、12.2、12.4、12.5、12.6、13.2、14.1、14.3、15.1、15.2"]
["環境",null,null,"●自社の環境への取組を開示している。",null,"・ホームページ、環境報告書、CSR報告書などで自社の取組を公開している。",{"$f":"D17","v":"●自社の環境への取組を開示している。"},"環境への取組の開示にあたり、更新した情報数、更新頻度等",false,1,0,null,12.6]
["環境","E-2","気候変動（脱炭素）への\n取組","●脱炭素に向けて、省エネに取り組んでいる。",null,"・省エネ型設備への更新や燃料転換などを実施している。",{"$f":"D18","v":"●脱炭素に向けて、省エネに取り組んでいる。"},"省エネ活動の実施件数、エネルギー使用原単位の削減率等",false,1,0,"【主な取組内容】\n\n【取組の成果】\n","7.3、8.4、9.4、13.2"]
[null,null,null,null,null,"・低公害車・EV・燃料電池車等を導入している。",{"$f":"D18","v":"●脱炭素に向けて、省エネに取り組んでいる。"},"EV等の導入件数、燃費削減率等",false,1,0,null,"7.3、8.4、9.4、13.2"]
["環境",null,null,null,null,"・省エネ運動や節電活動などを実施している。",{"$f":"D18","v":"●脱炭素に向けて、省エネに取り組んでいる。"},"省エネ運動の実施件数、電力使用原単位の削減率、社員の省エネ意識の向上率等",false,1,0,null,"7.3、8.4、13.2"]
[null,null,null,"●脱炭素に向けて、再生可能エネルギーの利用を進めている。",null,"・太陽光発電、風力発電、バイオマス発電等を導入（自家消費）している。",{"$f":"D21","v":"●脱炭素に向けて、再生可能エネルギーの利用を進めている。"},"再生可能エネルギーの導入量等",false,2,0,"【主な取組内容】\n\n【再生可能エネルギー由来の電力利用割合：　％】\n\n\n","7.2、9.4、13.2"]
[null,null,null,null,null,"・再生可能エネルギーによる電力や証書（グリーン電力証書、J-クレジット、非化石証書等）を購入している。",{"$f":"D21","v":"●脱炭素に向けて、再生可能エネルギーの利用を進めている。"},"再生可能エネルギーの購入量等",false,2,0,null,"7.2、13.2"]
["環境","E-3","水の効率的な\n利用・管理","●自社の事業活動において、水の効率的な利用・管理を行っている",null,"・雨水・中水の再利用や節水を促進している。",{"$f":"D23","v":"●自社の事業活動において、水の効率的な利用・管理を行っている"},"節水活動等の実施件数、水使用原単位の削減率等",false,1,0,"【主な取組内容（法定を上回る取組のみ記載）】\n\n【取組の成果】","6.1、6.4"]
["環境",null,null,null,null,"・事業所からの排水・汚水による水質汚濁防止に向け、法定を上回る取組がある。",{"$f":"D23","v":"●自社の事業活動において、水の効率的な利用・管理を行っている"},"法定を上回る水質汚濁防止対策の実施件数等",false,1,0,null,6.3]
["環境","E-4","廃棄物・有害化学物質の管理・３Rの推進","●自社の事業活動において、廃棄物・有害化学物質を適切に管理している。",null,"・リデュース、リユース、リサイクルの推進を行っている。",{"$f":"D25","v":"●自社の事業活動において、廃棄物・有害化学物質を適切に管理している。"},"廃棄物のリサイクル率等",false,1,0,"【主な取組内容（法定を上回る取組のみ記載）】\n\n【取組の成果】","11.6、12.3、12.4、12.5"]
["環境",null,null,null,null,"・法令等で規制されている有害化学物質を把握し、使用量の削減及び適切な使用に努めている。",{"$f":"D25","v":"●自社の事業活動において、廃棄物・有害化学物質を適切に管理している。"},"化学物質の適切な管理のための対策の実施件数等",false,1,0,null,"3.9、12.4"]
["環境","E-5","天然資源・\n生物多様性\nへの配慮","●自社の事業活動において、天然資源や生物多様性へ配慮している。",null,"・天然資源の持続的利用に配慮した調達を行っている（例：違法伐採などがない認証ラベルの付いた木材・木材製品を調達している、持続可能で環境に配慮している食材を調達している）。",{"$f":"D27","v":"●自社の事業活動において、天然資源や生物多様性へ配慮している。"},"天然資源に配慮した製品の調達率等",false,1,0,"【主な取組内容】\n\n\n\n【取組の成果】\n","12.2、14.4、15.2"]
["環境",null,null,null,null,"・事業活動に際して、生物の生息地・希少種の保全・在来種への配慮を行っている（例：外来種の駆除活動を行っている、敷地内等にビオトープを整備している）。",{"$f":"D27","v":"●自社の事業活動において、天然資源や生物多様性へ配慮している。"},"植林・植樹や里山保全活動への参加数、関わった社員の数等",false,1,0,null,"14.2、15.1、15.4、15.5、15.7、15.8、15.9"]
["環境",null,null,null,null,"・森林の適切な維持・管理に関する取組を行っている（例：里山保全活動に参加している）。",{"$f":"D25","v":"●自社の事業活動において、廃棄物・有害化学物質を適切に管理している。"},"植林・植樹や里山保全活動への参加数、関わった社員の数等",false,1,0,null,"15.1、15.2、15.3、15.4、15.5、15.8"]
["環境",null,null,null,null,"・海洋プラスチック汚染の防止や海洋護岸保護などに関する活動を行っている。",{"$f":"D25","v":"●自社の事業活動において、廃棄物・有害化学物質を適切に管理している。"},"植林・植樹や里山保全活動への参加数、関わった社員の数等",false,1,{"$f":"IFERROR(VLOOKUP(TRUE,I30:J30,2,FALSE),0)","v":0},null,"14.1、14.2、14.3、14.4、14.5"]
["環境",null,null,null,null,"・各種エコラベルや「あいち生物多様性企業認証」など、自社の事業において天然資源や生物多様性の保全に資する認証を取得している。",{"$f":"D26","v":0},"植林・植樹や里山保全活動への参加数、関わった社員の数等",false,2,0,null,"14、15"]
["環境","E-6","製品・サービスを通じた環境問題の解決","●製品・サービスの提供を通じて、環境問題の改善に貢献している。",null,"・省エネルギー、再生可能エネルギー促進、廃棄物削減、リサイクル、生物多様性保全、海洋プラスチック汚染防止など、大気、水質、土壌の汚染防止や浄化につながる技術・製品を提供している。（※製品・サービスを構成する、各種部品等の企業間取引も含む）",{"$f":"D32","v":"●製品・サービスの提供を通じて、環境問題の改善に貢献している。"},"製品ライフサイクルを通じたCO2排出量等（例：製品使用時のCO2排出量の削減率等）",false,2,0,"【主な取組内容】\n※なぜ、その製品・サービスが環境問題の改善に繋がるのかという観点も記載\n※当該製品・サービスの貴社事業における位置づけ（従来技術の応用、新規技術として開発、新たな分野への挑戦、等）についても記載","6、7、9.4、11.5、11.6、12.4、12.5、13、14、15"]
[null,null,null,null,null,"・上記の様な製品・サービスの開発や提供にあたって、産官学や異業種との連携に取り組んでいる",{"$f":"D33","v":0},null,false,2,0,null,17.170000000000002]
["社会","S-1","労働安全衛生･健康経営","●職場における安全・衛生管理に取り組んでいる。",null,"・作業中の事故等を防ぐための職場の安全対策ルールがある。",{"$f":"D34","v":"●職場における安全・衛生管理に取り組んでいる。"},"安全対策ルールの認知度、労働災害発生件数・労働災害度数率等",false,1,0,"【取得している認証がある場合】\n認証名／取得年月：\n\n【安全対策ルールがある場合】\n主要なルール／ルール概要：",8.8000000000000007]
["社会",null,null,null,null,"・安全衛生優良企業公表制度認定（厚生労働省）を取得している。",{"$f":"D34","v":"●職場における安全・衛生管理に取り組んでいる。"},"認定取得の維持、労働災害発生件数・労働災害度数率等",false,1,0,null,"3.4、8.5、8.8"]
["社会",null,null,null,null,"・ISO45001・OHSAS18001など、労働安全衛生に関する認証を取得している。",{"$f":"D34","v":"●職場における安全・衛生管理に取り組んでいる。"},"認証取得の維持、労働災害発生件数・労働災害度数率等",false,2,0,null,"3.4、8.5、8.8"]
["社会",null,null,"●健康経営に取り組んでいる。",null,"・長時間労働を抑制する取組がある。",{"$f":"D37","v":"●健康経営に取り組んでいる。"},"時間外労働時間の削減率等",false,1,0,"【取得している認証がある場合】\n認証名／取得年月：\n\n【主な取組内容】\n\n\n【取組の成果】","3.4、8.5"]
["社会",null,null,null,null,"・社員の健康促進のための活動(福利厚生でのジム利用助成など)を実施している。",{"$f":"D37","v":"●健康経営に取り組んでいる。"},"社員の健康促進のための活動や、整備した制度の数等",false,1,0,null,"3.4、3.8"]
["社会",null,null,null,null,"・従業員向けに、メンタルヘルスの意識啓発や、カウンセラーなどへの相談体制の整備などを行っている。",{"$f":"D37","v":"●健康経営に取り組んでいる。"},"メンタルヘルス研修の受講者数・受講率等",false,1,0,null,"3.4、3.8"]
["社会",null,null,null,null,"・「健康経営優良法人」などを取得している。",{"$f":"D37","v":"●健康経営に取り組んでいる。"},"メンタルヘルス不調者の発生率・不調後の復帰率等",false,2,0,null,"3.4、3.8"]
["社会","S-2","多様な\n人材の活躍","●多様な人材（外国人、障がい者、高齢者、性的マイノリティ等）の活躍支援に関する取組がある。",null,"・外国語対応や、障がい者、高齢者向けバリアフリー設備の設置など、職場環境を整備している。",{"$f":"D41","v":"●多様な人材（外国人、障がい者、高齢者、性的マイノリティ等）の活躍支援に関する取組がある。"},"障がい者雇用率、バリアフリー設備の設置数等",false,1,0,"【主な取組内容（ルールや制度を有している場合は、その概要も記載）】\n\n\n\n【取組の成果】","8.8、10.2"]
["社会",null,null,null,null,"・多様な人材の人材育成や教育制度の充実を図っている。",{"$f":"D41","v":"●多様な人材（外国人、障がい者、高齢者、性的マイノリティ等）の活躍支援に関する取組がある。"},"外国人等、特定の対象者向けのスキルアップ研修等の受講者数・受講率等",false,1,0,null,"4.4、4.5、10.3"]
["社会",null,null,null,null,"・LGBTQへの配慮に関する制度や環境を整備している。",{"$f":"D41","v":"●多様な人材（外国人、障がい者、高齢者、性的マイノリティ等）の活躍支援に関する取組がある。"},"性的マイノリティに関する啓発活動の実施回数や整備した制度の数等",false,1,0,null,"5.1、10.2､10.3、16.7"]
["社会",null,null,null,null,"・法定を上回る障がい者雇用を行い、「もにす認定」などを取得している。",{"$f":"D44","v":0},"セクハラ・パワハラ研修等の受講者数・受講率等",false,2,{"$f":"IFERROR(VLOOKUP(TRUE,I44:J44,2,FALSE),0)","v":0},null,"8.8、10.2、10.3"]
["社会",null,null,"●ハラスメントを防止するための取組を進めている。",null,"・セクハラ、マタハラ、パワハラなどを防止するためのルール・制度構築、教育の実施、相談体制が整備されている。",{"$f":"D45","v":"●ハラスメントを防止するための取組を進めている。"},"セクハラ・パワハラ研修等の受講者数・受講率等",false,1,0,null,"5.1、5.2、8.8、10.2、10.3、16.1"]
["社会","S-3","女性の\n活躍促進","●女性の活躍支援に向けた目標を設定している。",null,"・女性管理職比率の目標、またはそれに準ずる指標目標を設定している。",{"$f":"D46","v":"●女性の活躍支援に向けた目標を設定している。"},"女性活躍やワーク・ライフ・バランス推進等に向けた社内プロジェクトの開催数や参加者数、取組の浸透度等",false,1,0,"【目標を設定している場合】\n目標の内容（指標・目標数値等）：\n\n【目標を設定していない場合】\n現状（指標・数値等）：","5.5、10.3"]
["社会",null,null,null,null,"・女性の採用比率の目標、またはそれに準ずる指標目標を設定している。",{"$f":"D46","v":"●女性の活躍支援に向けた目標を設定している。"},"女性のキャリア形成研修の受講者数・受講率、キャリア意識の向上に向けた取組の実施回数等",false,1,0,null,"5.5、10.3"]
["社会",null,null,null,null,"・現状において、女性の活躍が十分に進んでいる（女性管理職比率・採用や在籍者の割合・役員比率が50％以上など）。",{"$f":"D46","v":"●女性の活躍支援に向けた目標を設定している。"},"女性管理職比率、女性の正規雇用転換数、女性が少なかった部署への配置転換数など",false,1,0,null,"5.1、5.5、10.3"]
["社会",null,null,"●女性の活躍を推進するための取組がある。",null,"・女性の活躍推進に向けた方針の策定や周知、従業員に対する固定的性別役割分担の解消やワーク・ライフ・バランス等の意識啓発等（意見交換や社内外の研修への参加促進等）を行う等、女性の活躍推進に向けた意識・職場風土を醸成している。",{"$f":"D49","v":"●女性の活躍を推進するための取組がある。"},"女性活躍やワーク・ライフ・バランス推進等に向けた社内プロジェクトの開催数や参加者数、取組の浸透度等",false,1,0,"【取得している認証がある場合】\n認証名／取得年月：\n\n\n【主な取組内容】\n\n\n【取組の成果】","4.5、5.4、5.5、8.5"]
["社会",null,null,null,null,"・社内外の研修、教育機会への参加促進や、メンター制度の実施、ロールモデルとなる人材の育成など、女性のキャリア形成を支援するための取組がある。",{"$f":"D49","v":"●女性の活躍を推進するための取組がある。"},"女性のキャリア形成研修の受講者数・受講率、キャリア意識の向上に向けた取組の実施回数等",false,1,0,null,"4.5、5.4、5.5"]
["社会",null,null,null,null,"・「えるぼし認定」や「あいち女性輝きカンパニー認証」などを取得している。",{"$f":"D49","v":"●女性の活躍を推進するための取組がある。"},"女性管理職比率、女性の正規雇用転換数、女性が少なかった部署への配置転換数など",false,2,0,null,"5.1、5.5、10.3"]
["社会","S-4","多様な\n働き方の促進","●多様な働き方を促進するための取組がある。",null,"・リモートワークやフレックスタイムを導入し、柔軟な勤務形態（場所・時間）を認めている。",{"$f":"D52","v":"●多様な働き方を促進するための取組がある。"},"リモートワークやフレックスタイム等の利用人数等",false,1,0,"【取得している認証がある場合】\n認証名／取得年月：\n\n【主な取組内容（法定を上回る取組である場合は、その旨を明記）】\n\n【取組の成果】","5.4、8.2"]
["社会",null,null,null,null,"・雇用形態に関わらず、同一労働同一賃金に基づく対応を行っている。",{"$f":"D52","v":"●多様な働き方を促進するための取組がある。"},"男女別等の平均時給等",false,1,0,null,"8.5、10.4"]
[null,null,null,null,null,"・副業・兼業を認めている。",{"$f":"D52","v":"●多様な働き方を促進するための取組がある。"},"社員の職務遂行能力・働きがいの向上率など",false,1,0,null,"8.2、8.5"]
[null,null,null,null,null,"・法定を上回る育児休業・介護休業制度を整備し、「くるみん認定」などを取得している。",{"$f":"D53","v":0},null,false,2,0,null,"5.4、8.8"]
["社会","S-5","従業員の人材育成・能力強化","●従業員に能力開発、教育訓練の機会や人材育成のための仕組みを提供している。",null,"・従業員の自己研鑽のための研修機会を提供している、または研修費用を一部／全部負担している。",{"$f":"D56","v":"●従業員に能力開発、教育訓練の機会や人材育成のための仕組みを提供している。"},"自己研鑽のための研修の受講者数・受講率等",false,1,0,"【主な取組内容（ルールや制度を有している場合は、その概要も記載）】\n\n\n【取組の成果】","4.4、4.5、8.5"]
["社会",null,null,null,null,"・若手や中途社員向けにメンター制度を整備している。",{"$f":"D56","v":"●従業員に能力開発、教育訓練の機会や人材育成のための仕組みを提供している。"},"入社後3年以内の離職率等",false,1,0,null,"4.4、8.5、8.6"]
["社会","S-6","取引先への配慮","●取引先（調達先、下請け、代理店等）の事業活動や環境・社会への取組を理解し、サプライチェーン全体で社会的責任を果たすために取り組んでいる。",null,"・取引先の環境保全、労働環境の改善、人権侵害の防止（紛争鉱物への対応）など、倫理面での適切な対応を行っている。",{"$f":"D58","v":"●取引先（調達先、下請け、代理店等）の事業活動や環境・社会への取組を理解し、サプライチェーン全体で社会的責任を果たすために取り組んでいる。"},"環境・社会への取組について、取引先に対して周知した数等",false,1,0,"【主な取組内容】\n\n\n【取組の成果】","9.3、12.3"]
["社会",null,null,null,null,"・取引先の環境・社会への取組支援のための指導・助言を行っている。",{"$f":"D58","v":"●取引先（調達先、下請け、代理店等）の事業活動や環境・社会への取組を理解し、サプライチェーン全体で社会的責任を果たすために取り組んでいる。"},"環境・社会への取組について、取引先に対して指導・助言を行った回数等",false,1,0,null,"9.3、12.3、12.4"]
["社会",null,null,null,null,"・取引先全体で環境・社会への取組を促進するために、取引先の意見を聞く場を設けている。",{"$f":"D58","v":"●取引先（調達先、下請け、代理店等）の事業活動や環境・社会への取組を理解し、サプライチェーン全体で社会的責任を果たすために取り組んでいる。"},"意見交換の場への取引先の参加社数等",false,1,0,null,"9.3、12.3、12.4"]
["社会","S-7","顧客に\n対する配慮","●顧客からの要望を聞き入れ・改善するための体制を整備している。",null,"・顧客対応窓口を設置している。",{"$f":"D61","v":"●顧客からの要望を聞き入れ・改善するための体制を整備している。"},"顧客からの要望等をもとに行った改善事例件数等",false,1,0,"【取得している認証がある場合】\n認証名／取得年月：\n\n【主な取組内容】\n",17.170000000000002]
["社会",null,null,null,null,"・顧客満足度調査を実施している。",{"$f":"D61","v":"●顧客からの要望を聞き入れ・改善するための体制を整備している。"},"顧客満足度の向上率等",false,1,0,null,17.170000000000002]
["社会",null,null,"●品質管理に関する取組を行っている",null,"・品質管理に関するマネジメント体制を構築している。",{"$f":"D63","v":"●品質管理に関する取組を行っている"},"製品不具合やクレーム等の発生件数等",false,2,0,null,"8.4、12.2、12.3"]
["社会",null,null,null,null,"・ISO9001など、品質マネジメントに関する認証を取得している。",{"$f":"D63","v":"●品質管理に関する取組を行っている"},"製品不具合やクレーム等の発生件数等",false,1,0,null,"8.4、12.2、12.3"]
["社会","S-8","製品・サービスを通じた社会課題の解決","●製品・サービスの提供を通じて社会課題の解決に貢献している。",null,"・高齢者、障がい者、外国人、その他社会的弱者が使いやすいよう配慮した製品・サービスを提供している。（※製品・サービスを構成する、各種部品等の企業間取引も含む）",{"$f":"D65","v":"●製品・サービスの提供を通じて社会課題の解決に貢献している。"},"社会課題の解決に資する製品・サービスの提供数等",false,1,0,"【主な取組内容】\n※なぜ、その製品・サービスが社会課題の解決に繋がるのかという観点も記載\n※当該製品・サービスの貴社事業における位置づけ（従来技術の応用、新規技術として開発、新たな分野への挑戦、等）についても記載","1､2､3､4､5､9､10､11､16"]
["社会",null,null,null,null,"・福祉・介護、育児、貧困・差別など社会課題の解決を目的とした製品・サービスを提供している。（※製品・サービスを構成する、各種部品等の企業間取引も含む）",{"$f":"D65","v":"●製品・サービスの提供を通じて社会課題の解決に貢献している。"},"社会課題の解決に資する製品・サービスの提供数等",false,1,0,null,"1､2､3､4､5､9､10､11､16"]
["社会",null,null,null,null,"・フェアトレード商品を取り扱うなど、国際貢献につながる製品・サービスを提供している。",{"$f":"D65","v":"●製品・サービスの提供を通じて社会課題の解決に貢献している。"},"社会課題の解決に資する製品・サービスの提供数等",false,1,0,null,"1､2､3､4､5､9､10､11､16､17"]
[null,null,null,null,null,"・上記の様な製品・サービスの開発や提供にあたって、産官学や異業種との連携に取り組んでいる",{"$f":"D66","v":0},null,false,1,0,null,17.170000000000002]
["ガバナンス","G-1","公正な\n経済取引","●公正な経済取引を行っている。",null,"・汚職・贈収賄を禁止する方針を掲げ、社員に教育している。",{"$f":"D69","v":"●公正な経済取引を行っている。"},"教育研修の受講者数・受講率、法令違反件数等",false,1,0,"【主な取組内容】","16.4、16.5"]
["ガバナンス",null,null,null,null,"・不正競争行為に関与しない方針を掲げ、社員に教育している。",{"$f":"D69","v":"●公正な経済取引を行っている。"},"教育研修の受講者数・受講率、法令違反件数等",false,1,0,null,"16.4、16.5"]
["ガバナンス",null,null,null,null,"・知的財産を保護するよう、適切な取組を進めている。",{"$f":"D69","v":"●公正な経済取引を行っている。"},"教育研修の受講者数・受講率、法令違反件数等",false,1,0,null,"16.4、16.5"]
["ガバナンス","G-2","情報セキュリティ","●情報セキュリティ対策を行っている",null,"・個人情報を適切に管理し、「プライバシーマーク」など関連認証を取得している。",{"$f":"D72","v":"●情報セキュリティ対策を行っている"},"情報セキュリティ対策の実施件数等",false,1,0,"【取得している認証がある場合】\n認証名／取得年月：\n\n\n【主な取組内容】","16.10"]
["ガバナンス",null,null,null,null,"・情報システムへのセキュリティ対策を施している。",{"$f":"D72","v":"●情報セキュリティ対策を行っている"},"情報セキュリティ対策の実施件数等",false,1,0,null,"16.10"]
["ガバナンス",null,null,null,null,"・従業員への情報セキュリティに関する研修を行っている。",{"$f":"D72","v":"●情報セキュリティ対策を行っている"},"研修の受講者数・受講率、情報セキュリティに対する理解度等",false,1,0,null,"4.4、16.10"]
["ガバナンス",null,null,null,null,"・対策を行うための部署、担当を配置している。",{"$f":"D72","v":"●情報セキュリティ対策を行っている"},"セキュリティ不備の発生件数、改善率等",false,1,0,null,"16.10"]
["ガバナンス","G-3","企業統治体制の構築","●企業統治体制を構築している。",null,"・法令遵守の考え方が社内に十分浸透するよう、役職員に研修している。",{"$f":"D76","v":"●企業統治体制を構築している。"},"研修の受講者数・受講率等",false,1,0,"【主な取組内容】","16.5、16.7、16.10"]
["ガバナンス",null,null,null,null,"・法令遵守が確実に行われるよう、体制・仕組み・ルールが整備されている。",{"$f":"D76","v":"●企業統治体制を構築している。"},"法令違反件数、社員へのルールの浸透度等",false,1,0,null,"16.5、16.7、16.10"]
["ガバナンス","G-4","企業の\n社会的責任","●社会・環境に及ぼす影響に対し、責任を持って対応している。",null,"・事業がもたらすネガティブな影響を軽減するための具体的な取組を実施している（例：住民説明会などの実施、事業地域への社会貢献活動）。",{"$f":"D78","v":"●社会・環境に及ぼす影響に対し、責任を持って対応している。"},"事業所周辺における地域とのコミュニケーション機会の数等",false,1,0,"【主な取組内容】","17.16、17.17"]
[null,null,null,null,null,"・非営利団体等への寄付活動を行っている。",{"$f":"D78","v":"●社会・環境に及ぼす影響に対し、責任を持って対応している。"},"寄付活動の実施回数等",false,1,0,null,"17.16、17.17"]
["ガバナンス",null,null,null,null,"・被災地の復興支援活動を実施している。",{"$f":"D78","v":"●社会・環境に及ぼす影響に対し、責任を持って対応している。"},"復興支援活動の実施回数等",false,1,0,null,"11.3、17.17"]
["ガバナンス",null,null,"●SDGs達成に資する各種取組について、企業として戦略的・持続的に推進する基盤を整備している。",null,"・SDGs達成に向けて社として貢献することを、企業理念や事業計画などにおいて言及している。",{"$f":"D81","v":"●SDGs達成に資する各種取組について、企業として戦略的・持続的に推進する基盤を整備している。"},"BCP計画の改定頻度等",false,1,0,"【SDGsへの貢献を言及している場合】\n言及している媒体（企業理念、HP、中期経営計画等）：\n\n【SDGs目標を明示している場合】\n目標番号と言及している媒体（HP、中期経営計画等）：\n※達成年度や数値目標がある場合は、その概要も記載","ー","ー"]
[null,null,null,null,null,"・SDGs達成に向けた自社の目標を明示すると共に、目標達成に向けた具体的な取組などについて策定・公表している。",{"$f":"D82","v":0},null,false,2,{"$f":"IFERROR(VLOOKUP(TRUE,I82:J82,2,FALSE),0)","v":0}]
["ガバナンス","G-5","事業継続\nと事業継承","●事業継続や事業継承に関する取組が進められている。",null,"・事故や災害などの発生に伴う事業中断を想定したBCP計画を策定している。",{"$f":"D83","v":"●事業継続や事業継承に関する取組が進められている。"},"BCP計画の改定頻度等",false,1,0,"【主な取組内容】","1.5、11.5、13.1"]
["ガバナンス",null,null,null,null,"・事業承継に関する検討が行われている。",{"$f":"D83","v":"●事業継続や事業継承に関する取組が進められている。"},"事業承継に関する施策の数等",false,1,0,null,"8.3、9.2"]
["地域","L-1","豊田市内における雇用促進","●市内における雇用を促進している。",null,"・従業員の1/2以上が豊田市民である (非正規・パートを含む)。",{"$f":"D85","v":"●市内における雇用を促進している。"},"市民の雇用比率等",false,3,0,"(記載不要）","8.3、8.5"]
["地域","L-2","豊田市の施策・事業への協力","●市の施策・事業に協力している。",null,"・豊田市と連携しながら、豊田市における施策・事業に協力している。",{"$f":"D86","v":"●市の施策・事業に協力している。"},"市の施策・事業への協力数、施策への社員の理解の浸透度等",false,3,0,"【主な取組内容（2021年度以降）】\n※継続して実施している取組である場合は、開始時期や頻度も記載\n※委託や工事など、単に市から受注した業務を除く",17.170000000000002]
["地域","L-3","豊田市内の地域コミュニティへの配慮","●地域課題解決に向けた事業や取組を行っている。",null,"・自然と共生できるまちづくりや環境問題への対応、山村地域等の活性化、高齢者や女性雇用の促進、健康づくりや介護予防など、豊田市の地域課題解決に資する事業や取組を行っている。",{"$f":"D87","v":"●地域課題解決に向けた事業や取組を行っている。"},"市と連携して行う、地域課題の解決に資する事業の実施回数等",false,3,0,"【主な取組内容（2021年度以降）】\n※継続して実施している取組である場合は、開始時期や頻度も記載","８、11"]
["地域",null,null,"●地域社会とのコミュニケーション機会を設けている。",null,"・地域住民の職場見学や地域学生の職業体験の受け入れ、近隣の学校への出張授業などを実施している。",{"$f":"D88","v":"●地域社会とのコミュニケーション機会を設けている。"},"職場見学等の受け入れ人数、出張授業の実施回数等",false,2,0,null,"4.7、12.8"]
["地域",null,null,null,null,"・地域在住の外国人のための支援活動（言語対応、生活、雇用面のサポート）をしている。",{"$f":"D88","v":"●地域社会とのコミュニケーション機会を設けている。"},"支援活動の実施件数、支援人数等",false,2,0,null,10.199999999999999]
["地域",null,null,null,null,"・地域の防災・防犯・清掃活動や、高齢者等の見守り活動などに参加している。",{"$f":"D88","v":"●地域社会とのコミュニケーション機会を設けている。"},"活動への参加数、関わった社員の数等",false,2,0,null,11.3]
[null,"L-4","製品・サービスを通じた地域問題の解決","●地域経済の振興・地域内経済循環に資する製品・サービスを提供している。",null,"・地域資源の積極的利用、地産地消、地産外商に取り組んでいる。",{"$f":"D91","v":"●地域経済の振興・地域内経済循環に資する製品・サービスを提供している。"},"市内事業者からの調達率、市内事業者への発注率等",false,3,0,"【主な取組内容】\n※製品・サービスのどの様な特徴が、地域内経済循環に繋がると考えられるかという点も記載\n※当該製品・サービスの貴社事業における位置づけ（従来技術の応用、新規技術として開発、　新たな分野への挑戦、等）についても記載","8.9、12.2、12.b、17.17"]
[null,null,null,null,null,"・文化振興、産品販促、観光促進などに資する製品・サービスを提供している。",{"$f":"D91","v":"●地域経済の振興・地域内経済循環に資する製品・サービスを提供している。"},null,false,3,0,null,"8.9、12.b、17.17"]
["地域",null,null,null,null,"・上記の様な製品・サービスの開発や提供にあたって、産官学や異業種、地域間企業との連携に取り組んでいる。",{"$f":"D91","v":"●地域経済の振興・地域内経済循環に資する製品・サービスを提供している。"},"地域経済に資する製品・サービスの提供数等",false,3,0,null,17.170000000000002]

{"sheet":"様式3号（今後の重点目標）","index":2,"n_rows":21,"n_cols":10,"rows_kept":21,"cut":false,"hidden":false,"merged":[[22,1,22,9],[2,1,2,10],[12,1,12,10],[13,8,14,10],[20,1,20,10],[19,8,19,10],[13,1,13,3],[15,8,15,10],[13,6,13,7],[16,8,16,10],[17,8,17,10],[18,8,18,10],[13,5,14,5],[13,4,14,4],[5,2,5,4],[6,2,6,4],[7,2,7,4],[8,2,8,4],[9,2,9,4]]}
[null,null,null,null,null,null,null,null,null,{"$f":"'様式1号（基本情報）'!F4","v":"第3回様式 修正"}]
[null,null,null,null,null,null,null,null,null,{"$f":"'様式1号（基本情報）'!C11","v":0}]
[null,"豊田市SDGs認証　今後の重点目標"]
[null,"重点的に取り組むゴール番号"]
[null,"今後、貴社が重点的に取り組むゴールについて、最低1つ、最大5つをプルダウンから選択してください。"]
[null,"①"]
[null,"②"]
[null,"③"]
[null,"④"]
[null,"⑤"]
[]
[null,"重点的に取り組む項目"]
[null,"今後、貴社が重点的に取り組む項目について、最低1つ、最大3つを記入してください。\n①C列「分類」をプルダウンから選択して下さい\n②D列「評価項目」をプルダウンから選択して下さい。\n③E列「関連ゴール番号」をご記入ください。なお、上で記載したゴールと一致していなくても結構です。\n④F列「現在の取り組み内容」（チェックシートでの記載内容と同じで可）を記入下さい。（自由記述）\n⑤G列・H列 「今後の目標」を記入下さい。目標の内容は、可能な限り具体的に設定下さい。（自由記述）\n⑥I列「目標達成に向けた取り組み」を記入ください。（自由記述）"]
[null,"取組項目",null,null,"関連ゴール番号","現在の取り組み内容\n※チェックシートに記載済の内容であれば、\n参照の旨で可","今後の目標",null,"目標達成に向けた取り組み"]
[null,"No","分類","評価項目",null,null,"目標の内容","目標達成期限"]
[null,"【例】","E-2  気候変動（脱炭素）への\n取組","●脱炭素に向けて、再生可能エネルギーの利用を進めている。","7,9,13","・チェックシート参照","①利用電力における再生可能エネルギー比率を50％以上とする\n②CO2排出量を▲●％とする（2021年度対比）","①2025年\n②2030年","・●●工場への太陽光発電システムの導入\n・グリーン電力の購入\n・上記の再生可能エネルギーへの切り替えに加えて、製造工程の見直しによる使用電力削減も含めて、CO2▲●％の達成を検討"]
[null,"【例】","S-３ 女性の活躍促進","●女性の活躍を推進するための取組がある。","8,10","・女性の積極採用、管理職採用を行っている\n・女性が働きやすい制度を整備している（子供の看病等の欠勤に対応する特別休暇制度、時間単位での有給取得等）","・女性管理職●名の育成","・2025年","・女性のキャリアアップに向けた研修・セミナーを企画し、参加を推奨する\n・キャリアプランの作成や、管理職からのOJTを実施する\n・仕事との両立に向けて課題となる点を協議するミーティングを実施する"]
[null,"①"]
[null,"②"]
[null,"③"]
[null,"【留意事項】\n・本シートの記載内容は、１年後に豊田市に対して実施いただく進捗報告の対象となります。"]

{"sheet":"【評価】_②認証チェックシート","index":3,"n_rows":133,"n_cols":44,"rows_kept":133,"cut":false,"hidden":true,"merged":[[34,43,38,43],[34,12,38,12],[100,25,103,25],[100,26,103,26],[101,24,103,24],[104,24,109,24],[104,25,109,25],[104,26,109,26],[21,24,23,24],[21,25,23,25],[21,26,26,26],[24,24,26,24],[24,25,26,25],[27,24,29,24],[27,25,29,25],[27,26,29,26],[104,14,106,14],[98,26,99,26],[93,12,94,12],[93,13,94,13],[93,14,94,14],[100,40,103,40],[100,42,103,42],[100,43,103,43],[101,3,103,3],[101,17,103,17],[101,27,103,27],[101,34,103,34],[132,1,132,3],[132,4,132,6],[132,12,132,14],[104,28,109,28],[104,29,109,29],[104,34,109,34],[104,35,109,35],[104,36,109,36],[104,40,109,40],[104,17,109,17],[104,18,109,18],[104,19,109,19],[104,27,109,27],[104,1,109,1],[104,2,109,2],[104,3,109,3],[104,12,109,12],[104,42,109,42],[104,43,109,43],[106,5,109,5],[106,20,109,20],[106,30,109,30],[98,43,99,43],[100,1,103,1],[100,2,103,2],[100,12,103,12],[100,18,103,18],[100,19,103,19],[100,28,103,28],[100,29,103,29],[98,30,99,30],[98,34,99,34],[98,35,99,35],[98,36,99,36],[98,40,99,40],[98,42,99,42],[98,18,99,18],[98,19,99,19],[98,27,99,27],[100,35,103,35],[100,36,103,36],[98,28,99,28],[98,29,99,29],[98,20,99,20],[98,24,99,24],[98,25,99,25],[98,1,99,1],[98,2,99,2],[98,3,99,3],[98,5,99,5],[98,12,99,12],[98,17,99,17],[95,34,96,34],[95,35,96,35],[95,36,96,36],[95,1,96,1],[95,2,96,2],[90,40,92,40],[90,42,92,42],[90,43,92,43],[93,3,94,3],[95,40,96,40],[95,42,96,42],[95,43,96,43],[95,17,96,17],[95,18,96,18],[95,19,96,19],[95,27,96,27],[95,28,96,28],[95,29,96,29],[95,24,96,24],[95,25,96,25],[95,26,96,26],[95,3,96,3],[95,12,96,12],[90,35,92,35],[90,19,94,19],[88,43,89,43],[90,1,94,1],[90,2,94,2],[90,3,92,3],[90,12,92,12],[90,17,92,17],[90,18,92,18],[88,29,89,29],[88,34,89,34],[88,35,89,35],[88,36,89,36],[88,40,89,40],[88,42,89,42],[93,40,94,40],[93,42,94,42],[90,24,92,24],[90,25,92,25],[90,26,94,26],[93,24,94,24],[93,25,94,25],[90,36,94,36],[88,25,89,25],[88,26,89,26],[84,40,87,40],[84,42,87,42],[84,43,87,43],[84,29,87,29],[84,34,87,34],[84,35,87,35],[93,43,94,43],[93,27,94,27],[93,28,94,28],[93,34,94,34],[93,35,94,35],[84,36,87,36],[90,27,92,27],[90,28,92,28],[90,29,94,29],[90,34,92,34],[88,1,89,1],[88,2,89,2],[88,3,89,3],[88,12,89,12],[84,19,87,19],[84,27,87,27],[84,28,87,28],[84,24,87,24],[84,25,87,25],[84,26,87,26],[88,17,89,17],[88,18,89,18],[88,19,89,19],[88,27,89,27],[88,28,89,28],[88,24,89,24],[93,17,94,17],[93,18,94,18],[76,19,80,19],[76,27,80,27],[76,28,80,28],[76,24,80,24],[81,43,83,43],[84,1,87,1],[84,2,87,2],[84,3,87,3],[84,12,87,12],[84,17,87,17],[84,18,87,18],[81,29,83,29],[81,34,83,34],[81,35,83,35],[81,36,83,36],[81,40,83,40],[81,42,83,42],[81,17,83,17],[81,18,83,18],[81,19,83,19],[81,27,83,27],[76,43,80,43],[79,5,80,5],[79,20,80,20],[79,30,80,30],[81,1,83,1],[81,2,83,2],[81,3,83,3],[81,12,83,12],[76,29,80,29],[76,34,80,34],[76,1,80,1],[76,2,80,2],[76,3,80,3],[76,12,80,12],[81,28,83,28],[81,26,83,26],[76,35,80,35],[76,36,80,36],[76,40,80,40],[76,42,80,42],[76,17,80,17],[76,18,80,18],[81,24,83,24],[81,25,83,25],[76,25,80,25],[76,26,80,26],[69,28,71,28],[69,24,71,24],[69,25,71,25],[72,40,75,40],[72,42,75,42],[72,43,75,43],[74,3,75,3],[74,17,75,17],[74,27,75,27],[74,34,75,34],[72,24,73,24],[72,19,75,19],[72,27,73,27],[72,28,75,28],[72,29,75,29],[72,34,73,34],[72,35,75,35],[72,25,75,25],[72,26,75,26],[74,24,75,24],[69,26,71,26],[72,36,75,36],[69,1,71,1],[69,2,71,2],[69,3,71,3],[69,12,71,12],[65,36,68,36],[65,40,68,40],[69,43,71,43],[72,1,75,1],[72,2,75,2],[72,3,73,3],[72,12,75,12],[72,17,73,17],[72,18,75,18],[69,29,71,29],[69,34,71,34],[69,35,71,35],[69,36,71,36],[69,40,71,40],[69,42,71,42],[69,17,71,17],[69,18,71,18],[69,19,71,19],[69,27,71,27],[66,30,68,30],[67,43,68,43],[65,24,68,24],[65,25,68,25],[65,19,68,19],[65,27,68,27],[65,28,68,28],[65,29,68,29],[65,34,68,34],[65,35,68,35],[65,26,68,26],[61,43,64,43],[65,1,68,1],[65,2,68,2],[65,3,68,3],[65,12,68,12],[65,17,68,17],[65,18,68,18],[61,29,64,29],[61,34,64,34],[61,35,64,35],[61,36,64,36],[61,40,64,40],[61,42,64,42],[61,17,64,17],[61,18,64,18],[61,19,64,19],[61,27,64,27],[61,28,64,28],[61,24,64,24],[61,25,64,25],[65,42,66,42],[65,43,66,43],[66,5,68,5],[66,20,68,20],[55,43,57,43],[58,3,60,3],[58,12,60,12],[58,17,60,17],[58,27,60,27],[58,34,60,34],[58,40,60,40],[58,42,60,42],[58,43,60,43],[55,33,57,33],[55,34,57,34],[55,35,60,35],[55,36,60,36],[55,40,57,40],[55,42,57,42],[55,19,60,19],[55,31,57,31],[55,32,57,32],[55,24,57,24],[55,25,60,25],[55,26,60,26],[58,24,60,24],[55,29,60,29],[43,17,45,17],[50,26,54,26],[61,26,64,26],[61,1,64,1],[61,2,64,2],[61,3,64,3],[61,12,64,12],[50,36,54,36],[55,1,60,1],[55,2,60,2],[55,3,57,3],[55,12,57,12],[55,17,57,17],[55,18,60,18],[50,19,54,19],[50,27,53,27],[50,28,54,28],[50,24,53,24],[50,25,54,25],[55,27,57,27],[55,28,60,28],[46,12,49,12],[46,17,49,17],[46,18,49,18],[46,43,49,43],[50,1,54,1],[50,2,54,2],[50,3,53,3],[50,12,54,12],[50,17,53,17],[50,18,54,18],[43,1,49,1],[43,2,49,2],[43,3,45,3],[43,12,45,12],[50,43,54,43],[50,33,52,33],[50,34,53,34],[50,35,54,35],[43,42,45,42],[50,40,54,40],[50,42,54,42],[43,43,45,43],[50,29,54,29],[50,31,52,31],[50,32,52,32],[46,42,49,42],[46,3,49,3],[46,34,49,34],[43,29,49,29],[43,21,45,21],[43,22,45,22],[43,23,45,23],[43,31,45,31],[43,32,45,32],[43,24,45,24],[43,25,45,25],[43,26,49,26],[46,24,49,24],[43,28,45,28],[39,42,42,42],[39,43,42,43],[40,5,42,5],[40,20,42,20],[40,30,42,30],[39,24,42,24],[39,25,42,25],[39,18,42,18],[39,19,42,19],[39,27,42,27],[39,28,42,28],[39,29,42,29],[39,34,42,34],[39,26,42,26],[34,40,38,40],[34,17,38,17],[34,18,38,18],[34,19,38,19],[34,27,38,27],[34,24,38,24],[34,25,38,25],[34,26,38,26],[46,25,49,25],[39,35,42,35],[39,36,42,36],[39,40,42,40],[43,33,45,33],[43,34,45,34],[43,35,45,35],[43,36,49,36],[43,40,45,40],[46,35,49,35],[46,40,49,40],[43,18,45,18],[43,19,49,19],[43,27,45,27],[46,27,49,27],[46,28,49,28],[39,1,42,1],[39,2,42,2],[39,3,42,3],[39,12,42,12],[39,17,42,17],[34,28,38,28],[34,29,38,29],[34,34,38,34],[34,35,38,35],[30,43,33,43],[31,5,33,5],[31,20,33,20],[31,30,33,30],[34,1,37,1],[34,2,37,2],[34,3,37,3],[34,14,37,14],[30,29,33,29],[30,34,33,34],[30,35,33,35],[30,36,33,36],[30,40,33,40],[30,42,33,42],[30,17,33,17],[30,18,33,18],[30,19,33,19],[30,27,33,27],[30,28,33,28],[30,24,33,24],[30,25,33,25],[30,26,33,26],[34,42,37,42],[34,36,38,36],[30,1,33,1],[30,2,33,2],[30,3,33,3],[30,12,33,12],[27,29,29,29],[27,34,29,34],[27,35,29,35],[27,17,29,17],[27,18,29,18],[27,19,29,19],[27,27,29,27],[27,28,29,28],[27,1,29,1],[27,2,29,2],[27,3,29,3],[27,12,29,12],[24,35,26,35],[24,40,26,40],[24,42,26,42],[24,43,26,43],[25,5,26,5],[25,20,26,20],[25,30,26,30],[27,43,29,43],[28,5,29,5],[28,20,29,20],[28,30,29,30],[27,36,29,36],[27,40,29,40],[27,42,29,42],[24,3,26,3],[24,12,26,12],[24,17,26,17],[21,18,23,18],[21,19,26,19],[21,27,23,27],[21,28,23,28],[21,29,26,29],[21,34,23,34],[24,18,26,18],[24,27,26,27],[24,28,26,28],[24,34,26,34],[18,42,20,42],[18,43,20,43],[21,1,26,1],[21,2,26,2],[21,3,23,3],[21,12,23,12],[21,17,23,17],[18,28,20,28],[18,29,20,29],[18,34,19,34],[18,35,20,35],[18,36,20,36],[18,40,20,40],[18,17,19,17],[18,18,20,18],[18,19,20,19],[18,27,19,27],[18,24,19,24],[18,25,20,25],[21,35,23,35],[21,36,26,36],[21,40,23,40],[21,42,23,42],[21,43,23,43],[18,26,20,26],[16,31,16,33],[16,38,16,39],[17,4,17,5],[17,38,17,39],[18,1,20,1],[18,2,20,2],[18,3,19,3],[18,12,20,12],[18,14,20,14],[16,18,17,18],[16,19,17,19],[16,27,17,27],[16,28,17,28],[16,29,17,29],[16,21,16,23],[16,11,17,11],[16,13,17,14],[16,17,17,17],[0,17,0,19],[0,27,0,29],[0,20,0,23],[0,30,0,33],[0,39,0,41],[2,1,2,14],[0,34,0,36],[0,24,0,26],[2,21,2,22],[2,31,2,32]]}
[null,null,null,null,null,null,null,null,null,null,null,null,{"$f":"'様式1号（基本情報）'!C11:F11","v":0},0,0,0,null,"【満点（全て記載）】",null,null,"<非表示：計算用（全て記載）＞",null,null,null,"【採点結果】",null,null,"【自動配点の場合の最高得点】",null,null,"<非表示：計算用（自動配点）＞",null,null,null,"【採点結果（自動配点）】",null,null,false]
[null,null,null,null,null,null,null,null,null,null,null,null,null,null,null,null,null,"　",null,null,null,null,null,null,null,null,null,"　"]
[null,"豊田市SDGs認証　認証チェックシート",null,null,null,null,null,null,null,null,null,null,null,null,null,null,null,"チェック計","加点計","合計","チェック計","加点計算用",null,"加点計","チェック計","加点計","合計","チェック計","加点計","合計","チェック計","加点計算用",null,"加点計","チェック計","加点計","合計"]
[null,null,null,null,null,null,null,null,null,null,null,null,{"$f":"'様式1号（基本情報）'!F4","v":"第3回様式 修正"},null,null,null,"E",{"$f":"SUM(R19:R43)","v":25},{"$f":"SUM(S19:S43)","v":30},{"$f":"R4+S4","v":55},{"$f":"SUM(U19:U41)","v":0},{"$f":"SUM(V19:V41)","v":0},{"$f":"SUM(W19:W43)","v":36},{"$f":"SUM(X19:X43)","v":0},{"$f":"IF(AL1=FALSE,(SUM(Y19:Y43)),0)","v":0},{"$f":"IF(AL1=FALSE,(SUM(Z19:Z43)),0)","v":0},{"$f":"Y4+Z4","v":0},{"$f":"SUM(AB19:AB41)","v":25},{"$f":"SUM(AC19:AC41)","v":30},{"$f":"AB4+AC4","v":55},{"$f":"SUM(AE19:AE41)","v":0},{"$f":"SUM(AF19:AF41)","v":0},{"$f":"SUM(AG19:AG43)","v":36},{"$f":"SUM(AH19:AH43)","v":0},{"$f":"IF(AL1=TRUE,(SUM(AI19:AI43)),0)","v":0},{"$f":"IF(AL1=TRUE,(SUM(AJ19:AJ43)),0)","v":0},{"$f":"AI4+AJ4","v":0}]
[null,"豊田市の以下の制度のうち、表彰実績がある／参加しているものがありましたら、表彰を受けた年／参加した年をご記入ください。（複数回表彰実績がある場合は、直近の実績をご記入ください。）",null,null,null,null,null,null,null,null,null,null,null,null,null,null,"S",{"$f":"SUM(R44:R81)","v":41},{"$f":"SUM(S44:S81)","v":32},{"$f":"R5+S5","v":73},{"$f":"SUM(U44:U80)","v":0},{"$f":"SUM(V44:V80)","v":0},{"$f":"SUM(W44:W81)","v":35},{"$f":"SUM(X44:X81)","v":0},{"$f":"IF(AL1=FALSE,(SUM(Y44:Y81)),0)","v":0},{"$f":"IF(AL1=FALSE,(SUM(Z44:Z81)),0)","v":0},{"$f":"Y5+Z5","v":0},{"$f":"R5","v":41},{"$f":"S5","v":32},{"$f":"AB5+AC5","v":73},{"$f":"SUM(AE44:AE80)","v":0},{"$f":"SUM(AF44:AF80)","v":0},{"$f":"SUM(AG44:AG81)","v":11},{"$f":"SUM(AH44:AH81)","v":0},{"$f":"IF(AL1=TRUE,(SUM(AI44:AI81)+AF8),0)","v":0},{"$f":"IF(AL1=TRUE,(SUM(AJ44:AJ81)+AG8),0)","v":0},{"$f":"AI5+AJ5","v":0}]
[null,null,"・はたらく人がイキイキ輝く事業所表彰",null,null,"【受賞の種類（チェック）　　　大賞　　　優秀賞　　　　イキイキ賞　　　　部門賞　表彰を受けた年：　　　　　　】　※直近3年以内の受賞に限る",null,null,null,null,null,null,null,null,null,null,"G",{"$f":"SUM(R82:R97)","v":17},{"$f":"SUM(S82:S97)","v":13},{"$f":"R6+S6","v":30},{"$f":"SUM(U82:U97)","v":0},0,13,0,{"$f":"IF(AL1=FALSE,(SUM(Y82:Y97)),0)","v":0},{"$f":"IF(AL1=FALSE,(SUM(Z82:Z97)),0)","v":0},{"$f":"Y6+Z6","v":0},{"$f":"SUM(AB82:AB97)","v":17},{"$f":"SUM(AC82:AC97)","v":13},30,0,0,13,0,{"$f":"IF(AL1=TRUE,(SUM(AI82:AI97)),0)","v":0},{"$f":"IF(AL1=TRUE,(SUM(AJ82:AJ97)),0)","v":0},{"$f":"AI6+AJ6","v":0}]
[null,null,"　※表彰による自動配点",null,null,"【　　希望する】",null,null,null,null,null,null,null,null,null,null,"L",{"$f":"SUM(R98:R110)","v":24},{"$f":"SUM(S98:S110)","v":17},{"$f":"R7+S7","v":41},{"$f":"SUM(U98:U110)","v":0},{"$f":"SUM(V98:V107)","v":0},{"$f":"SUM(W98:W110)","v":23},{"$f":"SUM(X98:X110)","v":0},{"$f":"IF(AL1=FALSE,(SUM(Y98:Y107)),0)","v":0},{"$f":"IF(AL1=FALSE,(SUM(Z98:Z107)),0)","v":0},{"$f":"Y7+Z7","v":0},{"$f":"SUM(AB98:AB110)","v":24},{"$f":"SUM(AC98:AC107)","v":17},41,{"$f":"SUM(AE98:AE110)","v":0},{"$f":"SUM(AF98:AF107)","v":0},{"$f":"SUM(AG98:AG110)","v":23},{"$f":"SUM(AH98:AH110)","v":0},{"$f":"IF(AL1=TRUE,(SUM(AI98:AI107)),0)","v":0},{"$f":"IF(AL1=TRUE,(SUM(AJ98:AJ107)),0)","v":0},{"$f":"AI7+AJ7","v":0}]
[null,null,"・豊田市脱炭素スクール",null,null,"【　　参加実績がある　／参加した年：】",null,null,null,null,null,null,null,null,null,null,"貴市制度（最大）",null,{"$f":"S9+S13","v":8},{"$f":"R8+S8","v":8},null,null,{"$f":"SUM(W9:W13)","v":0},{"$f":"W8","v":0},null,{"$f":"IF(AL1=FALSE,W8,0)","v":0},{"$f":"Y8+Z8","v":0},null,{"$f":"AC13","v":3},{"$f":"AC8","v":3},null,{"$f":"SUM(AF9:AF12)","v":0},{"$f":"SUM(AG9:AG12)","v":0},null,null,{"$f":"IF(AL1=TRUE,AG13,0)","v":0},{"$f":"AI8+AJ8","v":0}]
[null,null,null,null,null,null,null,null,null,null,null,null,null,null,null,null,"大賞",null,5,null,false,5,{"$f":"IFERROR(VLOOKUP(TRUE,U9:V9,2,FALSE),0)","v":0},null,null,null,null,21,18,null,null,{"$f":"IFERROR(VLOOKUP(TRUE,U9:AG9,8,FALSE),0)","v":0},{"$f":"IFERROR(VLOOKUP(TRUE,U9:AG9,9,FALSE),0)","v":0}]
[null,null,null,null,null,null,null,null,null,null,null,null,null,null,null,null,"優秀賞",null,4,null,false,4,{"$f":"IFERROR(VLOOKUP(TRUE,U10:V10,2,FALSE),0)","v":0},null,null,null,null,17,14,null,null,{"$f":"IFERROR(VLOOKUP(TRUE,U10:AG10,8,FALSE),0)","v":0},{"$f":"IFERROR(VLOOKUP(TRUE,U10:AG10,9,FALSE),0)","v":0}]
[null,null,null,null,null,null,null,null,null,null,null,null,null,null,null,null,"賞",null,3,null,false,3,{"$f":"IFERROR(VLOOKUP(TRUE,U11:V11,2,FALSE),0)","v":0},null,null,null,null,11,10,null,null,0,{"$f":"IFERROR(VLOOKUP(TRUE,U11:AG11,9,FALSE),0)","v":0}]
[null,null,null,null,null,null,null,null,null,null,null,null,null,null,null,null,"部門賞",null,3,null,false,3,{"$f":"IFERROR(VLOOKUP(TRUE,U12:V12,2,FALSE),0)","v":0},null,null,null,null,11,10,null,null,0,0]
[null,null,null,null,null,null,null,null,null,null,null,null,null,null,null,null,"参加",null,3,null,false,3,0,null,null,null,null,null,3,null,null,3,{"$f":"IFERROR(VLOOKUP(TRUE,U13:AG13,12,FALSE),0)","v":0}]
[null,null,null,null,null,null,null,null,null,null,null,null,null,null,null,null,"合計",{"$f":"SUM(R4:R8)","v":107},{"$f":"SUM(S4:S8)","v":100},{"$f":"SUM(T4:T8)","v":207},0,0,{"$f":"SUM(W4:W8)","v":107},0,{"$f":"SUM(Y4:Y8)","v":0},{"$f":"SUM(Z4:Z8)","v":0},{"$f":"SUM(AA4:AA8)","v":0},{"$f":"SUM(AB4:AB8)","v":107},95,{"$f":"SUM(AD4:AD8)","v":202},{"$f":"SUM(AE4:AE8)","v":0},0,83,{"$f":"SUM(AH4:AH8)","v":0},{"$f":"SUM(AI4:AI8)","v":0},{"$f":"SUM(AJ4:AJ8)","v":0},{"$f":"SUM(AK4:AK8)","v":0}]
[null,null,null,null,null,null,null,null,true,null,null,null,null,null,null,null,null,{"$f":"SUM(R19:R107)","v":107},92,199,null,null,null,null,{"$f":"SUM(Y19:Y107)","v":0},0,0,78,69,147,null,null,null,null,{"$f":"SUM(AI19:AI107)","v":0},{"$f":"SUM(AJ19:AJ107)","v":0},{"$f":"SUM(AK19:AK107)","v":0}]
[null,null,null,null,null,null,null,null,false]
[null,"ID","分類","項目",null,"取組の具体例",null,null,false,null,null,"選択番号","御社の取組について","関連するSDGsの目標・ターゲット",null,null,null,"満点\n(チェック部分\nE/L比率上昇）","満点\n(加点部分）","満点\n(全体）","点数①","点数②",null,null,"点数①","点数②","最終評価","満点\n(チェック部分\nE/L比率上昇）","満点\n(加点部分）","満点\n(全体）","点数①","点数②",null,null,"点数①","点数②","最終評価",null,"記述内容を踏まえた加点ポイント",null,"審査員注記",null,"記述内容を踏まえた加点ポイント","※加点ポイントにおける基準・留意点"]
[null,null,null,null,"＊記載してある取組にチェック☑してください（複数選択可）。",null,"3号用項目（項目）","3号用項目（指標例）",false,null,null,null,"＊チェックを付けた取組の内、特に注力している／言及したい項目について、御社の取組やその実績などを具体的にお書きください。",null,null,null,null,null,null,null,"チェック☑数で\n自動表示","チェック有無","該当点数","チェック点数","チェック☑数で\n自動表示","記述内容を踏まえた増減","①＋②",null,null,null,"チェック☑数で\n自動表示","チェック有無","該当点数","チェック点数","チェック☑数で\n自動表示","記述内容を踏まえた増減","①＋②",null,"記述内容を踏まえた増減",null,"審査に際して、判断に迷った点があれば、記載",null,"記述内容を踏まえた増減"]
["環境","E-1","環境マネジメント・コミュニケーション","●自社の事業活動に伴う環境負荷を低減するためのマネジメント体制を構築している。",null,"・継続的に環境面の活動を改善するための環境マネジメント体制を構築している。",{"$f":"D19","v":"●自社の事業活動に伴う環境負荷を低減するためのマネジメント体制を構築している。"},"環境マネジメント体制を構築している事業所の割合（全社に占める売上高、事業所数等の比率）等",false,1,null,null,{"$f":"'様式2号（認証チェックシート）'!L15","v":"【取得している認証がある場合】\n認証名／取得年月：\n\n【取組を公開している媒体がある場合】\n媒体名やURL等：\n\n【主な取組内容】\n※目標等をバックキャスティングで設定している場合は、その旨も記載\n"},"1.5、3.9、6.3、7.2、7.3、8.4、11.6、12.2、12.4、12.5、12.6、13.3、14.1、14.3、15.1、15.2",null,null,null,3,2,{"$f":"R19+R21+S19","v":6},{"$f":"'様式2号（認証チェックシート）'!K15","v":0},false,1,{"$f":"IFERROR(VLOOKUP(TRUE,V19:W19,2,FALSE),0)","v":0},{"$f":"U19+U20","v":0},{"$f":"X19+X20","v":0},{"$f":"Y19+Y21+Z19","v":0},3,2,{"$f":"AB19+AB21+AC19","v":6},{"$f":"'様式2号（認証チェックシート）'!K15","v":0},{"$f":"V19","v":false},1,{"$f":"IFERROR(VLOOKUP(TRUE,AF19:AG19,2,FALSE),0)","v":0},{"$f":"AE19+AE20","v":0},{"$f":"AH19+AH20","v":0},{"$f":"AI19+AI21+AJ19","v":0},null,null,"①具体的な取組を実施している：+1点",null,null,"・実績を確認\n【追加加点】\n①具体的な取組を実施している：+1点\n②企業戦略・目標に則って、バックキャストで行動計画を策定している：+1点","①「具体的な取組」について\n・実績を確認する\n　ー環境マネジメント：　\n　　・計画があるか、実行されているか、実施結果を振り返り計画に反映しているか、かかる実施体制が整っているか（責任部署がある、定例の進捗確認会議体がある）等\n※第三者が評価する認証を取得している場合は、「認証名・取得年月」の記載があれば①を加点とする\n　ー取組開示：\n　　・取組の開示があるか\n②「企業戦略・目標に則って、バックキャストで行動計画を策定」について\n　　・環境マネジメントの目標や計画について、一部門の過去の延長線上ではなく、中長期的な社としての目標を有しているか、その上でのマネジメント目標・計画となっているか"]
["環境",null,null,null,null,"・「ISO14001」、「エコアクション21」、「KES（環境マネジメントスタンダード）」など、環境マネジメントシステムに関する認証を取得している。",{"$f":"D19","v":"●自社の事業活動に伴う環境負荷を低減するためのマネジメント体制を構築している。"},"環境マネジメント体制を構築している事業所の割合（全社に占める売上高、事業所数等の比率）等",false,1,null,null,null,"1.5、3.9、6.3、7.2、7.3、8.4、11.6、12.2、12.4、12.5、12.6、13.3、14.1、14.3、15.1、15.2",null,null,null,null,null,null,{"$f":"'様式2号（認証チェックシート）'!K16","v":0},false,1,{"$f":"IFERROR(VLOOKUP(TRUE,V20:W20,2,FALSE),0)","v":0},null,null,null,null,null,null,{"$f":"'様式2号（認証チェックシート）'!K16","v":0},{"$f":"V20","v":false},1,{"$f":"IFERROR(VLOOKUP(TRUE,AF20:AG20,2,FALSE),0)","v":0},null,null,null,null,null,"②企業戦略・目標に則って、バックキャストで行動計画を策定している：+1点"]
["環境",null,null,"●自社の環境への取組を開示している。",null,"・ホームページ、環境報告書、CSR報告書などで自社の取組を公開している。",{"$f":"D21","v":"●自社の環境への取組を開示している。"},"環境への取組の開示にあたり、更新した情報数、更新頻度等",false,1,null,null,null,12.6,null,null,null,1,null,null,{"$f":"'様式2号（認証チェックシート）'!K17","v":0},null,null,0,{"$f":"U21","v":0},null,null,1,null,null,{"$f":"'様式2号（認証チェックシート）'!K17","v":0},null,null,0,{"$f":"AE21","v":0}]
["環境","E-2","気候変動（脱炭素）への\n取組","●脱炭素に向けて、省エネに取り組んでいる。",null,"・省エネ型設備への更新や燃料転換などを実施している。",{"$f":"D22","v":"●脱炭素に向けて、省エネに取り組んでいる。"},"省エネ活動の実施件数、エネルギー使用原単位の削減率等",false,1,null,null,{"$f":"'様式2号（認証チェックシート）'!L18","v":"【主な取組内容】\n\n【取組の成果】\n"},"7.3、8.4、9.4、13.3",null,null,null,3,4,{"$f":"R22+S22+R25+S25","v":15},{"$f":"'様式2号（認証チェックシート）'!K18","v":0},false,1,0,{"$f":"U22+U23+U24","v":0},{"$f":"X22+X23+X24","v":0},{"$f":"Y22+Z22+Y25+Z25","v":0},3,4,{"$f":"AB22+AC22+AB25+AC25","v":15},{"$f":"'様式2号（認証チェックシート）'!K18","v":0},{"$f":"V22","v":false},1,0,{"$f":"AE22+AE23+AE24","v":0},{"$f":"AH22+AH23+AH24","v":0},{"$f":"AI22+AJ22+AI25+AJ25","v":0},null,null,"①具体的な取組を実施している：+1点",null,null,"【追加加点】\n①具体的な取組を実施している：+1点\n②事業のマテリアリティを考慮した取組を行っている：+1点\n③取組結果を把握し、成果を挙げている：+2点","②「事業のマテリアリティを考慮」について\n・マテリアリティは組織の「重要課題」のこと。事業の内容を踏まえた際に、その取組が本質的か／取組の効果・影響が大きいと考えられるか\n　ー例：「EV車導入」\n　　運輸業（CO2排出の8割が輸送）→マテリアリティを考慮\n　　小売店（CO2排出の7割が店舗、自社の社有車由来は1割）→マテリアリティ考慮とまでは言えない\n・事業に即した取組であり、取組の効果が相応にあると想定される場合は、加点\n※製造業における「工場のLED導入」「節電運動」は、工場設備や製造プロセス、材料調達などより本質的な取組とは異なるため、加点なし"]
[null,null,null,null,null,"・低公害車・EV・燃料電池車等を導入している。",{"$f":"D22","v":"●脱炭素に向けて、省エネに取り組んでいる。"},"EV等の導入件数、燃費削減率等",false,1,null,null,null,"7.3、8.4、9.4、13.3",null,null,null,null,null,null,{"$f":"'様式2号（認証チェックシート）'!K19","v":0},false,1,0,null,null,null,null,null,null,{"$f":"'様式2号（認証チェックシート）'!K19","v":0},false,1,0,null,null,null,null,null,"②事業のマテリアリティを考慮した取組を行っている：+1点"]
["環境",null,null,null,null,"・省エネ運動や節電活動などを実施している。",{"$f":"D22","v":"●脱炭素に向けて、省エネに取り組んでいる。"},"省エネ運動の実施件数、電力使用原単位の削減率、社員の省エネ意識の向上率等",false,1,null,null,null,"7.3、8.4、13.3",null,null,null,null,null,null,{"$f":"'様式2号（認証チェックシート）'!K20","v":0},false,2,0,null,null,null,null,null,null,{"$f":"'様式2号（認証チェックシート）'!K20","v":0},false,2,0,null,null,null,null,null,"③取組結果を把握し、成果を挙げている：+2点"]
[null,null,null,"●脱炭素に向けて、再生可能エネルギーの利用を進めている。",null,"・太陽光発電、風力発電、バイオマス発電等を導入（自家消費）している。",{"$f":"D25","v":"●脱炭素に向けて、再生可能エネルギーの利用を進めている。"},"再生可能エネルギーの導入量等",false,1,null,null,{"$f":"'様式2号（認証チェックシート）'!L21","v":"【主な取組内容】\n\n【再生可能エネルギー由来の電力利用割合：　％】\n\n\n"},"7.2、9.4、13.3",null,null,null,4,4,null,{"$f":"'様式2号（認証チェックシート）'!K21","v":0},false,1,0,{"$f":"U25+U26","v":0},{"$f":"X25+X26+X27","v":0},null,4,4,null,{"$f":"'様式2号（認証チェックシート）'!K21","v":0},false,1,0,{"$f":"AE25+AE26","v":0},{"$f":"AH25+AH26+AH27","v":0},null,null,null,"①具体的な取組を実施している：+1点",null,null,"【追加加点】\n①具体的な取組を実施している：+1点\n②成果として、再生可能エネルギー由来電力利用割合が50％以上：+2点\n③成果として、再生可能エネルギー由来の電力利用割合が100%：+3点","①「具体的な取組」について\n・現在実績がなくとも、今後近い将来における導入を具体的に検討している場合は、加点対象"]
[null,null,null,null,null,"・再生可能エネルギーによる電力や証書（グリーン電力証書、J-クレジット、非化石証書等）を購入している。",{"$f":"D25","v":"●脱炭素に向けて、再生可能エネルギーの利用を進めている。"},"再生可能エネルギーの購入量等",false,1,null,null,null,"7.2、13.3",null,null,null,null,null,null,{"$f":"'様式2号（認証チェックシート）'!K22","v":0},false,2,0,null,null,null,null,null,null,{"$f":"'様式2号（認証チェックシート）'!K22","v":0},false,2,0,null,null,null,null,null,"②成果として、再生可能エネルギー由来電力利用割合が50％以上：+2点"]
[null,null,null,null,null,null,null,null,false,null,null,null,null,null,null,null,null,null,null,null,null,false,3,0,null,null,null,null,null,null,null,false,3,0,null,null,null,null,null,"③成果として、再生可能エネルギー由来の電力利用割合が100%：+3点"]
["環境","E-3","水の効率的な\n利用・管理","●自社の事業活動において、水の効率的な利用・管理を行っている",null,"・雨水・中水の再利用や節水を促進している。",{"$f":"D28","v":"●自社の事業活動において、水の効率的な利用・管理を行っている"},"節水活動等の実施件数、水使用原単位の削減率等",false,1,null,null,{"$f":"'様式2号（認証チェックシート）'!L23","v":"【主な取組内容（法定を上回る取組のみ記載）】\n\n【取組の成果】"},"6.1、6.4",null,null,null,2,4,{"$f":"R28+S28","v":6},{"$f":"'様式2号（認証チェックシート）'!K23","v":0},false,1,0,{"$f":"U28+U29","v":0},{"$f":"X28+X29+X30","v":0},{"$f":"Y28+Z28","v":0},2,4,{"$f":"AB28+AC28","v":6},{"$f":"'様式2号（認証チェックシート）'!K23","v":0},false,1,0,{"$f":"AE28+AE29","v":0},{"$f":"AH28+AH29+AH30","v":0},{"$f":"AI28+AJ28","v":0},null,null,"①法定を超える、具体的な取組を実施している：+1点",null,null,"【追加加点】\n①法定以上の、具体的な取組を実施している：+1点\n②事業のマテリアリティを考慮した取組を行っている：+1点\n③取組結果を把握し、成果を挙げている：+1点","①「具体的な取組」について\n・廃水設備等の整備のみならず、事業プロセスそのものの改善事項（製造プロセスの改善や原料の切り替えなどを通じた節水）も加点対象"]
["環境",null,null,null,null,"・事業所からの排水・汚水による水質汚濁防止に向け、法定を上回る取組がある。",{"$f":"D28","v":"●自社の事業活動において、水の効率的な利用・管理を行っている"},"法定を上回る水質汚濁防止対策の実施件数等",false,1,null,null,null,6.3,null,null,null,null,null,null,{"$f":"'様式2号（認証チェックシート）'!K24","v":0},false,1,0,null,null,null,null,null,null,{"$f":"'様式2号（認証チェックシート）'!K24","v":0},false,1,0,null,null,null,null,null,"②事業のマテリアリティを考慮した取組を行っている：+1点"]
[null,null,null,null,null,null,null,null,false,null,null,null,null,null,null,null,null,null,null,null,null,false,2,0,null,null,null,null,null,null,null,false,2,0,null,null,null,null,null,"③取組結果を把握し、成果を挙げている：+2点"]
["環境","E-4","廃棄物・有害化学物質の管理・３Rの推進","●自社の事業活動において、廃棄物・有害化学物質を適切に管理している。",null,"・リデュース、リユース、リサイクルの推進を行っている。",{"$f":"D31","v":"●自社の事業活動において、廃棄物・有害化学物質を適切に管理している。"},"廃棄物のリサイクル率等",false,1,null,null,{"$f":"'様式2号（認証チェックシート）'!L25","v":"【主な取組内容（法定を上回る取組のみ記載）】\n\n【取組の成果】"},"11.6、12.3、12.4、12.5",null,null,null,2,5,{"$f":"R31+S31","v":7},{"$f":"'様式2号（認証チェックシート）'!K25","v":0},false,1,0,{"$f":"U31+U32","v":0},{"$f":"X31+X32+X33+X34","v":0},{"$f":"Y31+Z31","v":0},2,5,{"$f":"AB31+AC31","v":7},{"$f":"'様式2号（認証チェックシート）'!K25","v":0},false,1,0,{"$f":"AE31+AE32","v":0},{"$f":"AH31+AH32+AH33+AH34","v":0},{"$f":"AI31+AJ31","v":0},null,null,"①法定を超える、具体的な取組を実施している：+1点",null,null,"【追加加点】\n①法定以上の、具体的な取組を実施している：+1点\n②事業のマテリアリティを考慮した取組を行っている：+1点\n※例えば、製造業で工場廃棄物が最も大きな廃棄物割合を占めるも、「本社の古紙回収」など本質から逸れた内容・影響度が限られる内容は加点なし\n③取組結果を把握し、成果を挙げている：+1点\n④単なる「ネガティブインパクトの緩和」に留まらず、新たな製品や製法の開発など、環境課題を事業の「機会」に替えた取組を行っている：+1点","②「事業のマテリアリティを考慮」について\n・例えば、製造業で工場廃棄物が最も大きな廃棄物割合を占めるも、「本社の古紙回収」など本質から逸れた内容・影響度が限られる内容は加点なし\n\n④「ネガティブインパクトの緩和」「事業機会に変えた取組」について\n・ネガティブインパクトとは、企業の製品・サービスあるいは活動に伴い社会・環境に及ぼす負の影響。例えば、環境に優しい製品を製造しても、その製造過程で大量の希少資源が必要であったり、大量の廃棄物が生じる様な場合、製品使用を通じたポジティブインパクトと同時に、資源枯渇や廃棄物増といったネガティブインパクトが生じていることになる\n・「ネガティブインパクトの緩和」とは、例えば「リサイクルを通じて廃棄物を削減しよう」という様な試み。一方、「事業機会に変えた取組」とは、例えば「資源枯渇に対応する代替素材の開発」「そもそも廃棄物が生じない商品設計」「廃棄物をアップサイクルして新たな製品へ」など、従来の負の影響を軽減するのではなく、商品設計や流通などの仕組みを根本から変えようとする試みを想定"]
["環境",null,null,null,null,"・法令等で規制されている有害化学物質を把握し、使用量の削減及び適切な使用に努めている。",{"$f":"D31","v":"●自社の事業活動において、廃棄物・有害化学物質を適切に管理している。"},"化学物質の適切な管理のための対策の実施件数等",false,1,null,null,null,"3.9、12.4",null,null,null,null,null,null,{"$f":"'様式2号（認証チェックシート）'!K26","v":0},false,1,0,null,null,null,null,null,null,{"$f":"'様式2号（認証チェックシート）'!K26","v":0},false,1,0,null,null,null,null,null,"②事業のマテリアリティを考慮した取組を行っている：+1点"]
[null,null,null,null,null,null,null,null,false,null,null,null,null,null,null,null,null,null,null,null,null,false,2,0,null,null,null,null,null,null,null,{"$f":"V33","v":false},2,0,null,null,null,null,null,"③取組結果を把握し、成果を挙げている：+2点"]
[null,null,null,null,null,null,null,null,false,null,null,null,null,null,null,null,null,null,null,null,null,false,1,0,null,null,null,null,null,null,null,false,1,0,null,null,null,null,null,"④単なる「ネガティブインパクトの緩和」に留まらず、新たな製品や製法の開発、アップサイクルへの取組など、環境課題を事業の「機会」に変えた取組を行っている：+1点"]
["環境","E-5","天然資源・\n生物多様性\nへの配慮","●自社の事業活動において、天然資源や生物多様性へ配慮している。",null,"・天然資源の持続的利用に配慮した調達を行っている（例：違法伐採などがない認証ラベルの付いた木材・木材製品を調達している、持続可能で環境に配慮している食材を調達している）。",{"$f":"D35","v":"●自社の事業活動において、天然資源や生物多様性へ配慮している。"},"天然資源に配慮した製品の調達率等",false,1,null,null,{"$f":"'様式2号（認証チェックシート）'!L27","v":"【主な取組内容】\n\n\n\n【取組の成果】\n"},"12.2、14.2、15",null,null,null,6,5,{"$f":"R35+S35","v":11},{"$f":"'様式2号（認証チェックシート）'!K27","v":0},false,1,0,{"$f":"U35+U36+U37+U38+U39","v":0},{"$f":"X35+X36+X37+X38","v":0},{"$f":"Y35+Z35","v":0},6,5,{"$f":"AB35+AC35","v":11},{"$f":"'様式2号（認証チェックシート）'!K27","v":0},false,1,0,{"$f":"AE35+AE36+AE37+AE38+AE39","v":0},{"$f":"AH35+AH36+AH37+AH38","v":0},{"$f":"AI35+AJ35","v":0},null,null,"①具体的な取組を実施している：+1点",null,null,"【追加加点】\n①具体的な取組を実施している：+1点\n②事業のマテリアリティを考慮した取組を行っている：+1点\n※例えば、製造業において、主要原料は価格優先も、「本社の文具をグリーン購入している」など本質から逸れた内容・影響度が限られる内容は加点なし\n③取組結果を把握し、成果を挙げている：+1点\n④単なる「ネガティブインパクトの緩和」に留まらず、新たな製品や製法の開発など、環境課題を事業の「機会」に変えた取組を行っている：+1点","②「事業のマテリアリティを考慮」について\n・例えば、製造業において、主要原料は価格優先で環境貢献を加味していないも、「本社の文具をグリーン購入している」など本質から逸れた内容・影響度が限られる内容は加点なし"]
["環境",null,null,null,null,"・事業活動に際して、生物の生息地・希少種の保全・在来種への配慮を行っている（例：外来種の駆除活動を行っている、敷地内等にビオトープを整備している）。",{"$f":"D35","v":"●自社の事業活動において、天然資源や生物多様性へ配慮している。"},"植林・植樹や里山保全活動への参加数、関わった社員の数等",false,1,null,null,null,"14.2、15.1、15.4、15.5、15.9",null,null,null,null,null,null,{"$f":"'様式2号（認証チェックシート）'!K28","v":0},false,1,0,null,null,null,null,null,null,{"$f":"'様式2号（認証チェックシート）'!K28","v":0},false,1,0,null,null,null,null,null,"②事業のマテリアリティを考慮した取組を行っている：+1点"]
["環境",null,null,null,null,"森林の適切な維持・管理を行っている（例：里山保全活動に参加している）。",{"$f":"D31","v":"●自社の事業活動において、廃棄物・有害化学物質を適切に管理している。"},"植林・植樹や里山保全活動への参加数、関わった社員の数等",false,1,null,null,null,"15.1、15.2、15.3、15.4、15.5，15.8",null,null,null,null,null,null,{"$f":"'様式2号（認証チェックシート）'!K29","v":0},false,2,0,null,null,{"$f":"Y37+Z37","v":0},null,null,{"$f":"AB37+AC37","v":0},{"$f":"'様式2号（認証チェックシート）'!K29","v":0},false,2,0,null,null,{"$f":"AI37+AJ37","v":0},null,null,"③取組結果を把握し、成果を挙げている：+２点"]
["環境",null,null,null,null,"・海洋プラスチック汚染の防止や海洋護岸保護などに関する活動を行っている。",{"$f":"D32","v":0},"植林・植樹や里山保全活動への参加数、関わった社員の数等",false,1,null,null,null,"14.1、14.2、14.3、14.4、14.5",null,null,null,null,null,null,{"$f":"'様式2号（認証チェックシート）'!K30","v":0},false,1,0,null,null,null,null,null,null,{"$f":"'様式2号（認証チェックシート）'!K30","v":0},false,1,0,null,null,null,null,null,"④単なる「ネガティブインパクトの緩和」に留まらず、新たな製品や製法の開発、アップサイクルへの取組など、環境課題を事業の「機会」に変えた取組を行っている：+1点"]
[null,null,null,null,null,"・各種エコラベルや「あいち生物多様性企業認証」など、自社の事業において天然資源や生物多様性の保全に資する認証を取得している。",null,null,null,null,null,null,null,null,null,null,null,null,null,null,{"$f":"'様式2号（認証チェックシート）'!K31","v":0},null,null,null,null,null,null,null,null,null,{"$f":"'様式2号（認証チェックシート）'!K31","v":0}]
["環境","E-6","製品・サービスを通じた環境問題の解決","●製品・サービスの提供を通じて、環境問題の改善に貢献している。",null,"・省エネルギー、再生可能エネルギー促進、廃棄物削減、リサイクル、生物多様性保全、海洋プラスチック汚染防止など、大気、水質、土壌の汚染防止や浄化につながる技術・製品を提供している。（※製品・サービスを構成する、各種部品等の企業間取引も含む）",{"$f":"D40","v":"●製品・サービスの提供を通じて、環境問題の改善に貢献している。"},"製品ライフサイクルを通じたCO2排出量等（例：製品使用時のCO2排出量の削減率等）",false,1,null,null,{"$f":"'様式2号（認証チェックシート）'!L32","v":"【主な取組内容】\n※なぜ、その製品・サービスが環境問題の改善に繋がるのかという観点も記載\n※当該製品・サービスの貴社事業における位置づけ（従来技術の応用、新規技術として開発、新たな分野への挑戦、等）についても記載"},"6、7、9.4、11.5、11.6、12.4、12.5、13、14、15",null,null,null,4,6,{"$f":"R40+S40","v":10},{"$f":"'様式2号（認証チェックシート）'!K32","v":0},false,3,0,{"$f":"U40+U41","v":0},{"$f":"X40+X41+X42+X43","v":0},{"$f":"Y40+Z40","v":0},4,6,{"$f":"AB40+AC40","v":10},{"$f":"'様式2号（認証チェックシート）'!K32","v":0},{"$f":"V40","v":false},3,0,{"$f":"AE40+AE41","v":0},{"$f":"AH40+AH41+AH42+AH43","v":0},{"$f":"AI40+AJ40","v":0},null,null,"＜チャレンジ＞\n①本業とは全く異なる分野に挑戦している+3点　",null,null,"・ＣＳＲ活動ではなくて商流での取組が、実際に売り上げが立っているか\n【追加加点】\n＜チャレンジ＞\n①本業とは全く異なる分野に挑戦している+3点　\n②本業の範囲だが、新規分野に挑戦している+2点　\n※本業の範囲で、これまでの取組の延長線上にある場合は、加点なし\n＜イノベーション＞\n①これまで存在しなかった新製品・サービス、新規の取組である+3点\n②これまでもあった製品・サービスに改良を加えた取組である+2点\n※類似の製品・サービス、取組は既に世の中にある場合は、加点なし","「チャレンジ」について\n・本業の範囲で、これまでの取組の延長線上にある場合は、加点なし\n\n「イノベーション」について\n・類似の製品・サービス、取組は既に世の中に充分に浸透している場合は、加点なし\n＜具体的な判断事例＞\n※例えば、建設業において、ZEB・ZEHは既に存在する製品であるも、新たな取組でもあり、充分に浸透しきっているとまでは言えない。こうした取組について、必ずしも個社のイノベーションとは言い難い側面はあれど、「②これまであった製品・サービスに改良を加えた取組である」を加点することは可能とする"]
[null,null,null,null,null,"・上記の技術・製品の開発や提供にあたって、産官学や異業種との連携に取り組んでいる",null,null,false,null,null,null,null,17.170000000000002,null,null,null,null,null,null,{"$f":"'様式2号（認証チェックシート）'!K33","v":0},false,2,0,null,null,null,null,null,null,{"$f":"'様式2号（認証チェックシート）'!K33","v":0},{"$f":"V41","v":false},2,0,null,null,null,null,null,"＜チャレンジ＞\n②本業の範囲だが、新規分野に挑戦している+2点　"]
[null,null,null,null,null,null,null,null,false,null,null,null,null,null,null,null,null,null,null,null,null,false,3,0,null,null,null,null,null,null,null,{"$f":"V42","v":false},3,0,null,null,null,null,null,"＜イノベーション＞\n①これまで存在しなかった新製品・サービス、新規の取組である+3点"]
[null,null,null,null,null,null,null,null,null,null,null,null,null,null,null,null,null,null,null,null,null,false,2,0,null,null,null,null,null,null,null,{"$f":"V43","v":false},2,0,null,null,null,null,null,"＜イノベーション＞\n②これまでもあった製品・サービスに改良を加えた取組である+2点"]
["社会","S-1","労働安全衛生･健康経営","●職場における安全・衛生管理に取り組んでいる。",null,"・作業中の事故等を防ぐための職場の安全対策ルールがある。",{"$f":"D44","v":"●職場における安全・衛生管理に取り組んでいる。"},"安全対策ルールの認知度、労働災害発生件数・労働災害度数率等",false,1,null,null,{"$f":"'様式2号（認証チェックシート）'!L34","v":"【取得している認証がある場合】\n認証名／取得年月：\n\n【安全対策ルールがある場合】\n主要なルール／ルール概要："},8.8000000000000007,null,null,null,4,0,{"$f":"R44+S44+R47+S47","v":12},{"$f":"'様式2号（認証チェックシート）'!K34","v":0},null,null,0,{"$f":"U44+U45+U46","v":0},null,{"$f":"Y44+Z44+Y47+Z47","v":0},null,null,null,null,null,null,0,{"$f":"AE44+AE45+AE46","v":0},null,{"$f":"AI44+AJ44+AI47+AJ47","v":0},null,null,null,null,null,"ー"]
["社会",null,null,null,null,"・安全衛生優良企業公表制度認定（厚生労働省）を取得している。",{"$f":"D44","v":"●職場における安全・衛生管理に取り組んでいる。"},"認定取得の維持、労働災害発生件数・労働災害度数率等",false,1,null,null,null,"3.4、8.5、8.8",null,null,null,null,null,null,{"$f":"'様式2号（認証チェックシート）'!K35","v":0}]
["社会",null,null,null,null,"・ISO45001・OHSAS18001など、労働安全衛生に関する認証を取得している。",{"$f":"D44","v":"●職場における安全・衛生管理に取り組んでいる。"},"認証取得の維持、労働災害発生件数・労働災害度数率等",false,1,null,null,null,"3.4、8.5、8.8",null,null,null,null,null,null,{"$f":"'様式2号（認証チェックシート）'!K36","v":0}]
["社会",null,null,"●健康経営に取り組んでいる。",null,"・長時間労働を抑制する取組がある。",{"$f":"D47","v":"●健康経営に取り組んでいる。"},"時間外労働時間の削減率等",false,1,null,null,{"$f":"'様式2号（認証チェックシート）'!L37","v":"【取得している認証がある場合】\n認証名／取得年月：\n\n【主な取組内容】\n\n\n【取組の成果】"},"3.4、8.5",null,null,null,5,3,null,{"$f":"'様式2号（認証チェックシート）'!K37","v":0},false,1,0,{"$f":"U47+U48+U49+U50","v":0},{"$f":"X47+X48","v":0},null,null,null,null,null,null,null,{"$f":"IFERROR(VLOOKUP(TRUE,AF47:AG47,2,FALSE),0)","v":0},{"$f":"AE47+AE48+AE49+AE50","v":0},{"$f":"AH47+AH48","v":0},null,null,null,"①複数の、具体的な取組を実施している：+1点",null,null,"【追加加点】\n①複数の、具体的な取組を実施している：+1点\n②取組結果を把握し、成果を挙げている：+2点"]
["社会",null,null,null,null,"・社員の健康促進のための活動(福利厚生でのジム利用助成など)を実施している。",{"$f":"D47","v":"●健康経営に取り組んでいる。"},"社員の健康促進のための活動や、整備した制度の数等",false,1,null,null,null,"3.4、3.8",null,null,null,null,null,null,{"$f":"'様式2号（認証チェックシート）'!K38","v":0},false,2,0,null,null,null,null,null,null,null,null,null,0,null,null,null,null,null,"②取組結果を把握し、成果を挙げている：+2点"]
["社会",null,null,null,null,"・従業員向けに、メンタルヘルスの意識啓発や、カウンセラーなどへの相談体制の整備などを行っている。",{"$f":"D47","v":"●健康経営に取り組んでいる。"},"メンタルヘルス研修の受講者数・受講率等",false,1,null,null,null,"3.4、3.8",null,null,null,null,null,null,{"$f":"'様式2号（認証チェックシート）'!K39","v":0},null,null,0,null,null,null,null,null,null,null,null,null,0]
["社会",null,null,null,null,"・「健康経営優良法人」などを取得している。",{"$f":"D47","v":"●健康経営に取り組んでいる。"},"メンタルヘルス不調者の発生率・不調後の復帰率等",false,1,null,null,null,"3.4、3.8",null,null,null,null,null,null,{"$f":"'様式2号（認証チェックシート）'!K40","v":0},null,null,0,null,null,null,null,null,null,null,null,null,0]
["社会","S-2","多様な\n人材の活躍","●多様な人材（外国人、障がい者、高齢者、性的マイノリティ等）の活躍支援に関する取組がある。",null,"・外国語対応や、障がい者、高齢者向けバリアフリー設備の設置など、職場環境を整備している。",{"$f":"D51","v":"●多様な人材（外国人、障がい者、高齢者、性的マイノリティ等）の活躍支援に関する取組がある。"},"障がい者雇用率、バリアフリー設備の設置数等",false,1,null,null,{"$f":"'様式2号（認証チェックシート）'!L41","v":"【主な取組内容（ルールや制度を有している場合は、その概要も記載）】\n\n\n\n【取組の成果】"},"8.8、10.2",null,null,null,5,5,{"$f":"R51+R55+S51","v":11},{"$f":"'様式2号（認証チェックシート）'!K41","v":0},false,1,0,{"$f":"U51+U52+U53+U54","v":0},{"$f":"X51+X52+X53+X54","v":0},{"$f":"Y51+Y55+Z51","v":0},null,null,null,null,null,null,0,{"$f":"AE51+AE52+AE53+AE54","v":0},{"$f":"AH51+AH52+AH53+AH54","v":0},{"$f":"AI51+AI55+AJ51","v":0},null,null,"①複数の、具体的な取組を実施している：+1点",null,null,"【追加加点】\n①複数の、具体的な取組を実施している：+1点\n※「ポスターを張ってある」など、簡易的な啓蒙に留まり、実効性が疑わしいものは加点なし\n②取組にあたって、ルールや制度を構築している：+1点\n③実効的な取組が可能となる体制を構築している：+1点\n④取組結果を把握し、成果を挙げている：+2点","①「具体的な取組」について\n・「ポスターを張ってある」など、簡易的な啓蒙に留まり、実効性が疑わしいものは加点なし\n\n②「ルールや制度構築」について\n・日常的・定例的なものとなっているのであれば「ルール・制度」に加点\n※メンター制度がある、特別な環境が整備されている（例：イスラム教徒への祈りの場）など\n\n③「体制の構築」について\n・実行に際して担当者が必要な施策は、「体制」に加点\n※相談窓口が設置されている、勉強会がある、など"]
["社会",null,null,null,null,"・多様な人材の人材育成や教育制度の充実を図っている。",{"$f":"D51","v":"●多様な人材（外国人、障がい者、高齢者、性的マイノリティ等）の活躍支援に関する取組がある。"},"外国人等、特定の対象者向けのスキルアップ研修等の受講者数・受講率等",false,1,null,null,null,"4.4、4.5、10.3",null,null,null,null,null,null,{"$f":"'様式2号（認証チェックシート）'!K42","v":0},false,1,0,null,null,null,null,null,null,null,null,null,null,null,null,null,null,null,"②取組にあたって、ルールや制度を構築している：+1点"]
["社会",null,null,null,null,"・LGBTQへの配慮に関する制度や環境を整備している。",{"$f":"D51","v":"●多様な人材（外国人、障がい者、高齢者、性的マイノリティ等）の活躍支援に関する取組がある。"},"性的マイノリティに関する啓発活動の実施回数や整備した制度の数等",false,1,null,null,null,"5.1、10.2､10.3、16.7",null,null,null,null,null,null,{"$f":"'様式2号（認証チェックシート）'!K43","v":0},false,1,0,null,null,null,null,null,null,null,null,null,null,null,null,null,null,null,"③実効的な取組が可能となる体制を構築している：+1点"]
[null,null,null,null,null,"・法定を上回る障がい者雇用を行い、「もにす認定」などを取得している。",null,null,null,null,null,null,null,null,null,null,null,null,null,null,{"$f":"'様式2号（認証チェックシート）'!K44","v":0},false,2,0,null,null,null,null,null,null,null,null,null,{"$f":"IFERROR(VLOOKUP(TRUE,AF54:AG54,2,FALSE),0)","v":0},null,null,null,null,null,"④取組結果を把握し、成果を挙げている：+2点"]
["社会",null,null,"●ハラスメントを防止するための取組を進めている。",null,"・セクハラ、マタハラ、パワハラなどを防止するためのルール・制度構築、教育の実施、相談体制が整備されている。",{"$f":"D55","v":"●ハラスメントを防止するための取組を進めている。"},"セクハラ・パワハラ研修等の受講者数・受講率等",false,1,null,null,null,"5.1、5.2、8.8、10.2、10.3、16.1",null,null,null,1,null,null,{"$f":"'様式2号（認証チェックシート）'!K45","v":0},null,null,0,{"$f":"U55","v":0},null,null,null,null,null,null,null,null,0,{"$f":"AE55","v":0}]
["社会","S-3","女性の\n活躍促進","●女性の活躍支援に向けた目標を設定している。",null,"・女性管理職比率の目標、またはそれに準ずる指標目標を設定している。",{"$f":"D56","v":"●女性の活躍支援に向けた目標を設定している。"},"女性活躍やワーク・ライフ・バランス推進等に向けた社内プロジェクトの開催数や参加者数、取組の浸透度等",false,1,null,null,{"$f":"'様式2号（認証チェックシート）'!L46","v":"【目標を設定している場合】\n目標の内容（指標・目標数値等）：\n\n【目標を設定していない場合】\n現状（指標・数値等）："},"5.5、10.3",null,null,null,3,6,{"$f":"R56+R59+S56","v":13},{"$f":"'様式2号（認証チェックシート）'!K46","v":0},false,2,0,{"$f":"U56+U57+U58","v":0},{"$f":"X56+X57+X58+X59+X60","v":0},{"$f":"Y56+Y59+Z56","v":0},null,null,null,null,null,null,0,{"$f":"AE56+AE57+AE58","v":0},{"$f":"AH56+AH57+AH58+AH59+AH60","v":0},{"$f":"AI56+AI59+AJ56","v":0},null,null,"①女性管理職比率目標／実態が30％以上：+2点",null,null,"【追加加点】\n①女性管理職比率目標／実態が30％以上：+2点\n②女性管理職比率目標／実態が15％以上：+1点\n③女性採用比率目標／実態が40％以上：＋1点"]
["社会",null,null,null,null,"・女性の採用比率の目標、またはそれに準ずる指標目標を設定している。",{"$f":"D56","v":"●女性の活躍支援に向けた目標を設定している。"},"女性のキャリア形成研修の受講者数・受講率、キャリア意識の向上に向けた取組の実施回数等",false,1,null,null,null,"5.5、10.3",null,null,null,null,null,null,{"$f":"'様式2号（認証チェックシート）'!K47","v":0},false,1,0,null,null,null,null,null,null,null,null,null,null,null,null,null,null,null,"②女性管理職比率目標／実態が15％以上：+1点"]
["社会",null,null,null,null,"・現状において、女性の活躍が十分に進んでいる（女性管理職比率・採用や在籍者の割合・役員比率が50％以上など）。",{"$f":"D56","v":"●女性の活躍支援に向けた目標を設定している。"},"女性管理職比率、女性の正規雇用転換数、女性が少なかった部署への配置転換数など",{"$f":"IF(#REF!=TRUE,TRUE,FALSE)","v":{"$error":"#REF!"}},1,null,null,null,"5.1、5.5、10.3",null,null,null,null,null,null,{"$f":"'様式2号（認証チェックシート）'!K48","v":0},false,1,0,null,null,null,null,null,null,null,null,null,null,null,null,null,null,null,"③女性採用比率目標／実態が40％以上：＋1点"]
["社会",null,null,"●女性の活躍を推進するための取組がある。",null,"・女性の活躍推進に向けた方針の策定や周知、従業員に対する固定的性別役割分担の解消やワーク・ライフ・バランス等の意識啓発等（意見交換や社内外の研修への参加促進等）を行う等、女性の活躍推進に向けた意識・職場風土を醸成している。",{"$f":"D59","v":"●女性の活躍を推進するための取組がある。"},"女性活躍やワーク・ライフ・バランス推進等に向けた社内プロジェクトの開催数や参加者数、取組の浸透度等",false,1,null,null,{"$f":"'様式2号（認証チェックシート）'!L49","v":"【取得している認証がある場合】\n認証名／取得年月：\n\n\n【主な取組内容】\n\n\n【取組の成果】"},"4.5、5.4、5.5、8.5",null,null,null,4,null,null,{"$f":"'様式2号（認証チェックシート）'!K49","v":0},false,1,0,{"$f":"U59+U60+U61","v":0},null,null,null,null,null,null,null,null,{"$f":"IFERROR(VLOOKUP(TRUE,AF59:AG59,2,FALSE),0)","v":0},{"$f":"AE59+AE60+AE61","v":0},null,null,null,null,"①複数の、具体的な取組を実施している：+1点",null,null,"【追加加点】\n①複数の、具体的な取組を実施している：+1点\n②取組結果を把握し、成果を挙げている：+2点"]
["社会",null,null,null,null,"・社内外の研修、教育機会への参加促進や、メンター制度の実施、ロールモデルとなる人材の育成など、女性のキャリア形成を支援するための取組がある。",{"$f":"D59","v":"●女性の活躍を推進するための取組がある。"},"女性のキャリア形成研修の受講者数・受講率、キャリア意識の向上に向けた取組の実施回数等",false,1,null,null,null,"4.5、5.4、5.5",null,null,null,null,null,null,{"$f":"'様式2号（認証チェックシート）'!K50","v":0},false,2,0,null,null,null,null,null,null,null,null,null,0,null,null,null,null,null,"②取組結果を把握し、成果を挙げている：+2点"]
["社会",null,null,null,null,"・「えるぼし認定」や「あいち女性輝きカンパニー認証」などを取得している。",{"$f":"D59","v":"●女性の活躍を推進するための取組がある。"},"女性管理職比率、女性の正規雇用転換数、女性が少なかった部署への配置転換数など",false,1,null,null,null,"5.1、5.5、10.3",null,null,null,null,null,null,{"$f":"'様式2号（認証チェックシート）'!K51","v":0},null,null,0,null,null,null,null,null,null,null,null,null,0]
["社会","S-4","多様な\n働き方の促進","●多様な働き方を促進するための取組がある。",null,"・リモートワークやフレックスタイムを導入し、柔軟な勤務形態（場所・時間）を認めている。",{"$f":"D62","v":"●多様な働き方を促進するための取組がある。"},"リモートワークやフレックスタイム等の利用人数等",false,1,null,null,{"$f":"'様式2号（認証チェックシート）'!L52","v":"【取得している認証がある場合】\n認証名／取得年月：\n\n【主な取組内容（法定を上回る取組である場合は、その旨を明記）】\n\n【取組の成果】"},"5.4、8.2",null,null,null,5,4,{"$f":"R62+S62","v":9},{"$f":"'様式2号（認証チェックシート）'!K52","v":0},false,1,0,{"$f":"U62+U63+U64+U65","v":0},{"$f":"X62+X63+X64","v":0},{"$f":"Y62+Z62","v":0},null,null,null,null,null,null,null,{"$f":"AE62+AE63+AE64+AE65","v":0},{"$f":"AH62+AH63+AH64","v":0},{"$f":"AI62+AJ62","v":0},null,null,"①複数の、具体的な取組を実施している：+1点",null,null,"【追加加点】\n①複数の、具体的な取組を実施している：+1点\n②法定以上の、具体的な取組を実施している：+1点\n③取組結果を把握し、成果を挙げている：+2点"]
["社会",null,null,null,null,"・雇用形態に関わらず、同一労働同一賃金に基づく対応を行っている。",{"$f":"D62","v":"●多様な働き方を促進するための取組がある。"},"男女別等の平均時給等",false,1,null,null,null,"8.5、10.4",null,null,null,null,null,null,{"$f":"'様式2号（認証チェックシート）'!K53","v":0},false,1,0,null,null,null,null,null,null,null,null,null,null,null,null,null,null,null,"②法定を上回る、具体的な取組を実施している：+1点"]
[null,null,null,null,null,"・副業・兼業を認めている。",{"$f":"D62","v":"●多様な働き方を促進するための取組がある。"},"社員の職務遂行能力・働きがいの向上率など",false,1,null,null,null,"8.2、8.5",null,null,null,null,null,null,{"$f":"'様式2号（認証チェックシート）'!K54","v":0},false,2,0,null,null,null,null,null,null,null,null,null,null,null,null,null,null,null,"③取組結果を把握し、成果を挙げている：+2点"]
[null,null,null,null,null,"・法定を上回る育児休業・介護休業制度を整備し、「くるみん認定」などを取得している。",null,null,false,null,null,null,null,"5.4、8.8",null,null,null,null,null,null,{"$f":"'様式2号（認証チェックシート）'!K55","v":0},null,null,0]
["社会","S-5","従業員の人材育成・能力強化","●従業員に能力開発、教育訓練の機会や人材育成のための仕組みを提供している。",null,"・従業員の自己研鑽のための研修機会を提供している、または研修費用を一部／全部負担している。",{"$f":"D66","v":"●従業員に能力開発、教育訓練の機会や人材育成のための仕組みを提供している。"},"自己研鑽のための研修の受講者数・受講率等",false,1,null,null,{"$f":"'様式2号（認証チェックシート）'!L56","v":"【主な取組内容（ルールや制度を有している場合は、その概要も記載）】\n\n\n【取組の成果】"},"4.4、4.5、8.5",null,null,null,2,5,{"$f":"R66+S66","v":7},{"$f":"'様式2号（認証チェックシート）'!K56","v":0},false,1,0,{"$f":"U66+U67","v":0},{"$f":"X66+X67+X68+X69","v":0},{"$f":"Y66+Z66","v":0},null,null,null,null,null,null,null,{"$f":"AE66+AE67","v":0},{"$f":"AH66+AH67+AH68+AH69","v":0},{"$f":"AI66+AJ66","v":0},null,null,"①複数の、具体的な取組を実施している：+1点",null,null,"【追加加点】\n①複数の、具体的な取組を実施している：+1点\n②取組にあたって、ルールや制度を構築している：+1点\n③実効的な取組が可能となる体制を構築している：+1点\n④取組結果を把握し、成果を挙げている：+2点"]
["社会",null,null,null,null,"・若手や中途社員向けにメンター制度を整備している。",{"$f":"D66","v":"●従業員に能力開発、教育訓練の機会や人材育成のための仕組みを提供している。"},"入社後3年以内の離職率等",false,1,null,null,null,"4.4、8.5、8.6",null,null,null,null,null,null,{"$f":"'様式2号（認証チェックシート）'!K57","v":0},false,1,0,null,null,null,null,null,null,null,null,null,null,null,null,null,null,null,"②取組にあたって、ルールや制度を構築している：+1点"]
[null,null,null,null,null,null,null,null,false,null,null,null,null,null,null,null,null,null,null,null,null,false,1,0,null,null,null,null,null,null,null,null,null,null,null,null,null,null,null,"③実効的な取組が可能となる体制を構築している：+1点"]
[null,null,null,null,null,null,null,null,false,null,null,null,null,null,null,null,null,null,null,null,null,false,2,0,null,null,null,null,null,null,null,null,null,null,null,null,null,null,null,"④取組結果を把握し、成果を挙げている：+2点"]
["社会","S-6","取引先への配慮","●取引先（調達先、下請け、代理店等）の事業活動や環境・社会への取組を理解し、サプライチェーン全体で社会的責任を果たすために取り組んでいる。",null,"・取引先の環境保全、労働環境の改善、人権侵害の防止（紛争鉱物への対応）など、倫理面での適切な対応を行っている。",{"$f":"D70","v":"●取引先（調達先、下請け、代理店等）の事業活動や環境・社会への取組を理解し、サプライチェーン全体で社会的責任を果たすために取り組んでいる。"},"環境・社会への取組について、取引先に対して周知した数等",false,1,null,null,{"$f":"'様式2号（認証チェックシート）'!L58","v":"【主な取組内容】\n\n\n【取組の成果】"},"9.3、12.3",null,null,null,3,3,{"$f":"R70+S70","v":6},{"$f":"'様式2号（認証チェックシート）'!K58","v":0},false,1,0,{"$f":"U70+U71+U72","v":0},{"$f":"X70+X71","v":0},{"$f":"Y70+Z70","v":0},3,3,{"$f":"AB70+AC70","v":6},{"$f":"'様式2号（認証チェックシート）'!K58","v":0},{"$f":"V70","v":false},1,0,{"$f":"AE70+AE71+AE72","v":0},{"$f":"AH70+AH71","v":0},{"$f":"AI70+AJ70","v":0},null,null,"①複数の、具体的な取組を実施している：+1点",null,null,"【追加加点】\n①複数の、具体的な取組を実施している：+1点\n②取組結果を把握し、成果を挙げている：+2点","・サプライヤーとのコミュニケーションを定期的に実施している形跡があるか"]
["社会",null,null,null,null,"・取引先の環境・社会への取組支援のための指導・助言を行っている。",{"$f":"D70","v":"●取引先（調達先、下請け、代理店等）の事業活動や環境・社会への取組を理解し、サプライチェーン全体で社会的責任を果たすために取り組んでいる。"},"環境・社会への取組について、取引先に対して指導・助言を行った回数等",false,1,null,null,null,"9.3、12.3、12.4",null,null,null,null,null,null,{"$f":"'様式2号（認証チェックシート）'!K59","v":0},false,2,0,null,null,null,null,null,null,{"$f":"'様式2号（認証チェックシート）'!K59","v":0},{"$f":"V71","v":false},2,0,null,null,null,null,null,"②取組結果を把握し、成果を挙げている：+2点"]
["社会",null,null,null,null,"・取引先全体で環境・社会への取組を促進するために、取引先の意見を聞く場を設けている。",{"$f":"D70","v":"●取引先（調達先、下請け、代理店等）の事業活動や環境・社会への取組を理解し、サプライチェーン全体で社会的責任を果たすために取り組んでいる。"},"意見交換の場への取引先の参加社数等",false,1,null,null,null,"9.3、12.3、12.4",null,null,null,null,null,null,{"$f":"'様式2号（認証チェックシート）'!K60","v":0},null,null,0,null,null,null,null,null,null,{"$f":"'様式2号（認証チェックシート）'!K60","v":0},null,null,0]
["社会","S-7","顧客に\n対する配慮","●顧客からの要望を聞き入れ・改善するための体制を整備している。",null,"・顧客対応窓口を設置している。",{"$f":"D73","v":"●顧客からの要望を聞き入れ・改善するための体制を整備している。"},"顧客からの要望等をもとに行った改善事例件数等",false,1,null,null,{"$f":"'様式2号（認証チェックシート）'!L61","v":"【取得している認証がある場合】\n認証名／取得年月：\n\n【主な取組内容】\n"},"12、17.17",null,null,null,2,null,{"$f":"R73+R75+S73","v":5},{"$f":"'様式2号（認証チェックシート）'!K61","v":0},null,null,0,{"$f":"U73+U74","v":0},null,{"$f":"Y73+Y75+Z73","v":0},2,null,{"$f":"AB73+AB75+AC73","v":5},{"$f":"'様式2号（認証チェックシート）'!K61","v":0},null,null,0,{"$f":"AE73+AE74","v":0},null,{"$f":"AI73+AI75+AJ73","v":0},null,null,null,null,null,"ー","・顧客とのコミュニケーションを定期的に実施している形跡があるか"]
["社会",null,null,null,null,"・顧客満足度調査を実施している。",{"$f":"D73","v":"●顧客からの要望を聞き入れ・改善するための体制を整備している。"},"顧客満足度の向上率等",false,1,null,null,null,"12、17.17",null,null,null,null,null,null,{"$f":"'様式2号（認証チェックシート）'!K62","v":0},null,null,0,null,null,null,null,null,null,{"$f":"'様式2号（認証チェックシート）'!K62","v":0},null,null,0]
["社会",null,null,"●品質管理に関する取組を行っている",null,"・品質管理に関するマネジメント体制を構築している。",{"$f":"D75","v":"●品質管理に関する取組を行っている"},"製品不具合やクレーム等の発生件数等",false,1,null,null,null,"8.4、12.4",null,null,null,3,null,null,{"$f":"'様式2号（認証チェックシート）'!K63","v":0},null,null,0,{"$f":"U75+U76","v":0},null,null,3,null,null,{"$f":"'様式2号（認証チェックシート）'!K63","v":0},null,null,0,{"$f":"AE75+AE76","v":0}]
["社会",null,null,null,null,"・ISO9001など、品質マネジメントに関する認証を取得している。",{"$f":"D75","v":"●品質管理に関する取組を行っている"},"製品不具合やクレーム等の発生件数等",false,1,null,null,null,"8.4、12.4",null,null,null,null,null,null,{"$f":"'様式2号（認証チェックシート）'!K64","v":0},null,null,0,null,null,null,null,null,null,{"$f":"'様式2号（認証チェックシート）'!K64","v":0},null,null,0]
["社会","S-8","製品・サービスを通じた社会課題の解決","●製品・サービスの提供を通じて社会課題の解決に貢献している。",null,"・高齢者、障がい者、外国人、その他社会的弱者が使いやすいよう配慮した製品・サービスを提供している。（※製品・サービスを構成する、各種部品等の企業間取引も含む）",{"$f":"D77","v":"●製品・サービスの提供を通じて社会課題の解決に貢献している。"},"社会課題の解決に資する製品・サービスの提供数等",false,1,null,null,{"$f":"'様式2号（認証チェックシート）'!L65","v":"【主な取組内容】\n※なぜ、その製品・サービスが社会課題の解決に繋がるのかという観点も記載\n※当該製品・サービスの貴社事業における位置づけ（従来技術の応用、新規技術として開発、新たな分野への挑戦、等）についても記載"},"1､2､3､4､5､9､10､11､12､16､17",null,null,null,4,6,{"$f":"R77+S77","v":10},{"$f":"'様式2号（認証チェックシート）'!K65","v":0},false,2,0,{"$f":"U77+U78+U79+U80","v":0},{"$f":"X77+X78+X79+X80+X81","v":0},{"$f":"Y77+Z77","v":0},4,6,{"$f":"AB77+AC77","v":10},{"$f":"'様式2号（認証チェックシート）'!K65","v":0},{"$f":"V77","v":false},2,0,{"$f":"AE77+AE78+AE79+AE80","v":0},{"$f":"AH77+AH78+AH79+AH80+AH81","v":0},{"$f":"AI77+AJ77","v":0},null,null,"＜チャレンジ＞\n①本業とは全く異なる分野に挑戦している：+2点　",null,null,"・ＣＳＲ活動ではなくて商流での取組か、実際に売り上げが立っているか\n【追加加点】\n＜チャレンジ＞\n①本業とは全く異なる分野に挑戦している+2点　\n②本業の範囲だが、新規分野に挑戦している+1点　\n※本業の範囲で、これまでの取組の延長線上にある場合は、加点なし\n＜イノベーション＞\n①これまで存在しなかった新製品・サービス、新規の取組である+2点\n②これまでもあった製品・サービスに改良を加えた取組である+1点\n※類似の製品・サービス、取組は既に世の中にある場合は、加点なし\n＜次世代＞\n若者・子どもの将来のための取組である+1点","「チャレンジ」について\n・本業の範囲で、これまでの取組の延長線上にある場合は、加点なし\n\n「イノベーション」について\n・類似の製品・サービス、取組は既に世の中にある場合は、加点なし"]
["社会",null,null,null,null,"・福祉・介護、育児、貧困・差別など社会課題の解決を目的とした製品・サービスを提供している。（※製品・サービスを構成する、各種部品等の企業間取引も含む）",{"$f":"D77","v":"●製品・サービスの提供を通じて社会課題の解決に貢献している。"},"社会課題の解決に資する製品・サービスの提供数等",false,1,null,null,null,"1､2､3､4､5､9､10､11､12､16､17",null,null,null,null,null,null,{"$f":"'様式2号（認証チェックシート）'!K66","v":0},false,1,0,null,null,null,null,null,null,{"$f":"'様式2号（認証チェックシート）'!K66","v":0},{"$f":"V78","v":false},1,0,null,null,null,null,null,"＜チャレンジ＞\n②本業の範囲だが、新規分野に挑戦している：+1点　"]
["社会",null,null,null,null,"・フェアトレード商品を取り扱うなど、国際貢献につながる製品・サービスを提供している。",{"$f":"D77","v":"●製品・サービスの提供を通じて社会課題の解決に貢献している。"},"社会課題の解決に資する製品・サービスの提供数等",false,1,null,null,null,"1､2､3､4､5､9､10､11､12､16､17",null,null,null,null,null,null,{"$f":"'様式2号（認証チェックシート）'!K67","v":0},false,2,0,null,null,null,null,null,null,{"$f":"'様式2号（認証チェックシート）'!K67","v":0},{"$f":"V79","v":false},2,0,null,null,null,null,null,"＜イノベーション＞\n①これまで存在しなかった新製品・サービス、新規の取組である：+2点"]
[null,null,null,null,null,"・上記製品・サービスの開発や提供にあたって、産官学や異業種との連携に取り組んでいる",null,null,false,null,null,null,null,17.170000000000002,null,null,null,null,null,null,{"$f":"'様式2号（認証チェックシート）'!K68","v":0},false,1,0,null,null,null,null,null,null,{"$f":"'様式2号（認証チェックシート）'!K68","v":0},{"$f":"V80","v":false},1,0,null,null,null,null,null,"＜イノベーション＞\n②これまでもあった製品・サービスに改良を加えた取組である：+1点"]
[null,null,null,null,null,null,null,null,false,null,null,null,null,null,null,null,null,null,null,null,null,false,2,0,null,null,null,null,null,null,null,{"$f":"V81","v":false},2,0,null,null,null,null,null,"＜次世代＞\n若者・子どもの将来のための取組である：+2点"]
["ガバナンス","G-1","公正な\n経済取引","●公正な経済取引を行っている。",null,"・汚職・贈収賄を禁止する方針を掲げ、社員に教育している。",{"$f":"D82","v":"●公正な経済取引を行っている。"},"教育研修の受講者数・受講率、法令違反件数等",false,1,null,null,{"$f":"'様式2号（認証チェックシート）'!L69","v":"【主な取組内容】"},"16.4、16.5",null,null,null,3,null,{"$f":"R82+S82","v":3},{"$f":"'様式2号（認証チェックシート）'!K69","v":0},null,null,0,{"$f":"U82+U83+U84","v":0},null,{"$f":"Y82+Z82","v":0},3,null,{"$f":"AB82+AC82","v":3},{"$f":"'様式2号（認証チェックシート）'!K69","v":0},null,null,0,{"$f":"AE82+AE83+AE84","v":0},null,{"$f":"AI82+AJ82","v":0},null,null,null,null,null,"【追加加点】\n①具体的な取組を実施している：+1点\n②実施意義を共有し、組織全体としての取組となっている：+1点"]
["ガバナンス",null,null,null,null,"・不正競争行為に関与しない方針を掲げ、社員に教育している。",{"$f":"D82","v":"●公正な経済取引を行っている。"},"教育研修の受講者数・受講率、法令違反件数等",false,1,null,null,null,"16.4、16.5",null,null,null,null,null,null,{"$f":"'様式2号（認証チェックシート）'!K70","v":0},null,null,0,null,null,null,null,null,null,{"$f":"'様式2号（認証チェックシート）'!K70","v":0},null,null,0]
["ガバナンス",null,null,null,null,"・知的財産を保護するよう、適切な取組を進めている。",{"$f":"D82","v":"●公正な経済取引を行っている。"},"教育研修の受講者数・受講率、法令違反件数等",false,1,null,null,null,"16.4、16.5",null,null,null,null,null,null,{"$f":"'様式2号（認証チェックシート）'!K71","v":0},null,null,0,null,null,null,null,null,null,{"$f":"'様式2号（認証チェックシート）'!K71","v":0},null,null,0]
["ガバナンス","G-2","情報セキュリティ","●情報セキュリティ対策を行っている",null,"・個人情報を適切に管理し、「プライバシーマーク」など関連認証を取得している。",{"$f":"D85","v":"●情報セキュリティ対策を行っている"},"情報セキュリティ対策の実施件数等",false,1,null,null,{"$f":"'様式2号（認証チェックシート）'!L72","v":"【取得している認証がある場合】\n認証名／取得年月：\n\n\n【主な取組内容】"},"16.10",null,null,null,4,2,{"$f":"R85+S85","v":6},{"$f":"'様式2号（認証チェックシート）'!K72","v":0},false,1,0,{"$f":"U85+U86+U87+U88","v":0},{"$f":"X85+X86","v":0},{"$f":"Y85+Z85","v":0},4,2,{"$f":"AB85+AC85","v":6},{"$f":"'様式2号（認証チェックシート）'!K72","v":0},{"$f":"V85","v":false},1,0,{"$f":"AE85+AE86+AE87+AE88","v":0},{"$f":"AH85+AH86","v":0},{"$f":"AI85+AJ85","v":0},null,null,"①具体的な取組を実施している：+1点",null,null,"【追加加点】\n①具体的な取組を実施している：+1点\n②実施意義を共有し、組織全体としての取組となっている：+1点"]
["ガバナンス",null,null,null,null,"・情報システムへのセキュリティ対策を施している。",{"$f":"D85","v":"●情報セキュリティ対策を行っている"},"情報セキュリティ対策の実施件数等",false,1,null,null,null,"16.10",null,null,null,null,null,null,{"$f":"'様式2号（認証チェックシート）'!K73","v":0},false,1,{"$f":"IFERROR(VLOOKUP(TRUE,V86:W86,2,FALSE),0)","v":0},null,null,null,null,null,null,{"$f":"'様式2号（認証チェックシート）'!K73","v":0},{"$f":"V86","v":false},1,{"$f":"IFERROR(VLOOKUP(TRUE,AF86:AG86,2,FALSE),0)","v":0},null,null,null,null,null,"②実施意義を共有し、組織全体としての取組となっている：+1点"]
["ガバナンス",null,null,null,null,"・従業員への情報セキュリティに関する研修を行っている。",{"$f":"D85","v":"●情報セキュリティ対策を行っている"},"研修の受講者数・受講率、情報セキュリティに対する理解度等",false,1,null,null,null,"4.4、16.10",null,null,null,null,null,null,{"$f":"'様式2号（認証チェックシート）'!K74","v":0},null,null,0,null,null,null,null,null,null,{"$f":"'様式2号（認証チェックシート）'!K74","v":0},null,null,0]
["ガバナンス",null,null,null,null,"・対策を行うための部署、担当を配置している。",{"$f":"D85","v":"●情報セキュリティ対策を行っている"},"セキュリティ不備の発生件数、改善率等",false,1,null,null,null,"16.10",null,null,null,null,null,null,{"$f":"'様式2号（認証チェックシート）'!K75","v":0},null,null,0,null,null,null,null,null,null,{"$f":"'様式2号（認証チェックシート）'!K75","v":0},null,null,0]
["ガバナンス","G-3","企業統治体制の構築","●企業統治体制を構築している。",null,"・法令遵守の考え方が社内に十分浸透するよう、役職員に研修している。",{"$f":"D89","v":"●企業統治体制を構築している。"},"研修の受講者数・受講率等",false,1,null,null,{"$f":"'様式2号（認証チェックシート）'!L76","v":"【主な取組内容】"},"16.5、16.7、16.10",null,null,null,2,2,{"$f":"R89+S89","v":4},{"$f":"'様式2号（認証チェックシート）'!K76","v":0},false,1,0,{"$f":"U89+U90","v":0},{"$f":"X89+X90","v":0},{"$f":"Y89+Z89","v":0},2,2,{"$f":"AB89+AC89","v":4},{"$f":"'様式2号（認証チェックシート）'!K76","v":0},{"$f":"V89","v":false},1,0,{"$f":"AE89+AE90","v":0},{"$f":"AH89+AH90","v":0},{"$f":"AI89+AJ89","v":0},null,null,"①具体的な取組を実施している：+1点",null,null,"【追加加点】\n①具体的な取組を実施している：+1点\n②実施意義を共有し、組織全体としての取組となっている：+1点"]
["ガバナンス",null,null,null,null,"・法令遵守が確実に行われるよう、体制・仕組み・ルールが整備されている。",{"$f":"D89","v":"●企業統治体制を構築している。"},"法令違反件数、社員へのルールの浸透度等",false,1,null,null,null,"16.5、16.7、16.10",null,null,null,null,null,null,{"$f":"'様式2号（認証チェックシート）'!K77","v":0},false,1,0,null,null,null,null,null,null,{"$f":"'様式2号（認証チェックシート）'!K77","v":0},{"$f":"V90","v":false},1,0,null,null,null,null,null,"②実施意義を共有し、組織全体としての取組となっている：+1点"]
["ガバナンス","G-4","企業の\n社会的責任","●社会・環境に及ぼす影響に対し、責任を持って対応している。",null,"・事業がもたらすネガティブな影響を軽減するための具体的な取組を実施している（例：住民説明会などの実施、事業地域への社会貢献活動）。",{"$f":"D91","v":"●社会・環境に及ぼす影響に対し、責任を持って対応している。"},"事業所周辺における地域とのコミュニケーション機会の数等",false,1,null,null,{"$f":"'様式2号（認証チェックシート）'!L78","v":"【主な取組内容】"},"17.16、17.17",null,null,null,3,2,{"$f":"R91+S91+R94+S94","v":13},{"$f":"'様式2号（認証チェックシート）'!K78","v":0},false,1,0,{"$f":"U91+U92+U93","v":0},{"$f":"X91+X92","v":0},{"$f":"Y91+Z91+Y94+Z94","v":0},3,2,{"$f":"AB91+AC91+AB94+AC94","v":13},{"$f":"'様式2号（認証チェックシート）'!K78","v":0},false,1,0,{"$f":"AE91+AE92+AE93","v":0},{"$f":"AH91+AH92","v":0},{"$f":"AI91+AJ91+AI94+AJ94","v":0},null,null,"①具体的な取組を実施している：+1点",null,null,"【追加加点】\n①具体的な取組を実施している：+1点\n②実施意義を共有し、組織全体としての取組となっている：+1点"]
[null,null,null,null,null,"・非営利団体等への寄付活動を行っている。",{"$f":"D91","v":"●社会・環境に及ぼす影響に対し、責任を持って対応している。"},"寄付活動の実施回数等",false,1,null,null,null,"17.16、17.17",null,null,null,null,null,null,{"$f":"'様式2号（認証チェックシート）'!K79","v":0},false,1,0,null,null,null,null,null,null,{"$f":"'様式2号（認証チェックシート）'!K79","v":0},false,1,0,null,null,null,null,null,"②実施意義を共有し、組織全体としての取組となっている：+1点"]
["ガバナンス",null,null,null,null,"・被災地の復興支援活動を実施している。",{"$f":"D91","v":"●社会・環境に及ぼす影響に対し、責任を持って対応している。"},"復興支援活動の実施回数等",false,1,null,null,null,"11.3、17.17",null,null,null,null,null,null,{"$f":"'様式2号（認証チェックシート）'!K80","v":0},null,null,0,null,null,null,null,null,null,{"$f":"'様式2号（認証チェックシート）'!K80","v":0},null,null,0]
["ガバナンス",null,null,"●SDGs達成に資する各種取組について、企業として戦略的・持続的に推進する基盤を整備している。",null,"・SDGs達成に向けて社として貢献することを、企業理念や事業計画などにおいて言及している。",{"$f":"D94","v":"●SDGs達成に資する各種取組について、企業として戦略的・持続的に推進する基盤を整備している。"},"BCP計画の改定頻度等",false,1,null,null,{"$f":"'様式2号（認証チェックシート）'!L81","v":"【SDGsへの貢献を言及している場合】\n言及している媒体（企業理念、HP、中期経営計画等）：\n\n【SDGs目標を明示している場合】\n目標番号と言及している媒体（HP、中期経営計画等）：\n※達成年度や数値目標がある場合は、その概要も記載"},"ー","ー",null,null,3,5,null,{"$f":"'様式2号（認証チェックシート）'!K81","v":0},false,2,0,{"$f":"U94+U95","v":0},{"$f":"X94+X95","v":0},null,3,5,null,{"$f":"'様式2号（認証チェックシート）'!K81","v":0},{"$f":"V94","v":false},2,0,{"$f":"AE94+AE95","v":0},{"$f":"AH94+AH95","v":0},null,null,null,"①自社のSDGsへの貢献について、経営理念や企業戦略（中期経営計画など）にて言及するなど、組織としてのコミットメントが明示されている：+2点",null,null,"【追加加点】\n①具体的な目標ターゲットを掲げると共に、具体的な達成時期や達成目標数値などについても明確化している+3点\n②自社のSDGsへの貢献について、経営理念や企業戦略（中期経営計画など）にて言及するなど、組織としてのコミットメントが明示されている+2点","・SDGsへの全般的な取組、もしくはSDGs達成に資する各種取組が、CSR活動ではなく、企業の成長戦略の1つとして位置付けられているか"]
[null,null,null,null,null,"・SDGs達成に向けた自社の目標を明示すると共に、目標達成に向けた具体的な取組などについて策定・公表している。",null,null,null,null,null,null,null,null,null,null,null,null,null,null,{"$f":"'様式2号（認証チェックシート）'!K82","v":0},false,3,0,null,null,null,null,null,null,{"$f":"'様式2号（認証チェックシート）'!K82","v":0},{"$f":"V95","v":false},3,0,null,null,null,null,null,"②具体的な目標ターゲットを掲げると共に、具体的な達成時期や達成目標数値などについても明確化している+3点"]
["ガバナンス","G-5","事業継続\nと事業継承","●事業継続や事業継承に関する取組が進められている。",null,"・事故や災害などの発生に伴う事業中断を想定したBCP計画を策定している。",{"$f":"D96","v":"●事業継続や事業継承に関する取組が進められている。"},"BCP計画の改定頻度等",false,1,null,null,{"$f":"'様式2号（認証チェックシート）'!L83","v":"【主な取組内容】"},"1.5、11.5、13.1",null,null,null,2,2,{"$f":"R96+S96","v":4},{"$f":"'様式2号（認証チェックシート）'!K83","v":0},false,1,0,{"$f":"U96+U97","v":0},{"$f":"X96+X97","v":0},{"$f":"Y96+Z96","v":0},2,2,{"$f":"AB96+AC96","v":4},{"$f":"'様式2号（認証チェックシート）'!K83","v":0},false,1,0,{"$f":"AE96+AE97","v":0},{"$f":"AH96+AH97","v":0},{"$f":"AI96+AJ96","v":0},null,null,"①具体的な取組を実施している：+1点",null,null,"【追加加点】\n①具体的な取組を実施している：+1点\n②実施意義を共有し、組織全体としての取組となっている：+1点","・「BCP策定」の場合、何かしら具体的に策定していることを記載すれば、詳細記載がなくとも①を加点"]
["ガバナンス",null,null,null,null,"・事業承継に関する検討が行われている。",{"$f":"D96","v":"●事業継続や事業継承に関する取組が進められている。"},"事業承継に関する施策の数等",false,1,null,null,null,"8.3、9.2",null,null,null,null,null,null,{"$f":"'様式2号（認証チェックシート）'!K84","v":0},false,1,0,null,null,null,null,null,null,{"$f":"'様式2号（認証チェックシート）'!K84","v":0},false,1,0,null,null,null,null,null,"②実施意義を共有し、組織全体としての取組となっている：+1点"]
["地域","L-1","豊田市内における雇用促進","●市内における雇用を促進している。",null,"・従業員の1/2以上が豊田市民である (非正規・パートを含む)。",{"$f":"D98","v":"●市内における雇用を促進している。"},"市民の雇用比率等",false,1,null,null,{"$f":"'様式2号（認証チェックシート）'!L85","v":"(記載不要）"},"8.3、8.5",null,null,null,3,0,{"$f":"R98+S98","v":3},{"$f":"'様式2号（認証チェックシート）'!K85","v":0},null,null,0,{"$f":"U98","v":0},null,{"$f":"Y98+Z98","v":0},3,0,{"$f":"AB98+AC98","v":3},{"$f":"'様式2号（認証チェックシート）'!K85","v":0},null,null,0,{"$f":"AE98","v":0},null,{"$f":"AI98+AJ98","v":0},null,null,null,null,null,"ー"]
["地域","L-2","豊田市の施策・事業への協力","●市の施策・事業に協力している。",null,"・豊田市と連携しながら、豊田市における施策・事業に協力している。",{"$f":"D99","v":"●市の施策・事業に協力している。"},"市の施策・事業への協力数、施策への社員の理解の浸透度等",false,1,null,null,{"$f":"'様式2号（認証チェックシート）'!L86","v":"【主な取組内容（2021年度以降）】\n※継続して実施している取組である場合は、開始時期や頻度も記載\n※委託や工事など、単に市から受注した業務を除く"},17.170000000000002,null,null,null,3,3,{"$f":"R99+S99","v":6},{"$f":"'様式2号（認証チェックシート）'!K86","v":0},false,1,0,{"$f":"U99","v":0},{"$f":"X99+X100","v":0},{"$f":"Y99+Z99","v":0},3,3,{"$f":"AB99+AC99","v":6},{"$f":"'様式2号（認証チェックシート）'!K86","v":0},{"$f":"V99","v":false},1,0,{"$f":"AE99","v":0},{"$f":"AH99+AH100","v":0},{"$f":"AI99+AJ99","v":0},null,null,"①複数の取組に協力している：+1点",null,null,"・1－２年以内の実績を確認する。\n【追加加点】\n①複数の取組に協力している：+1点\n②持続性を考慮し、定期的・継続的に協力している：+２点","市からの単純な受託業務については加点対象としない。"]
[null,null,null,null,null,null,null,null,null,null,null,null,null,null,null,null,null,null,null,null,null,false,2,0,null,null,null,null,null,null,null,{"$f":"V100","v":false},2,0,null,null,null,null,null,"②持続性を考慮し、定期的・継続的に協力している：+２点"]
["地域","L-3","豊田市内の地域コミュニティへの配慮","●地域課題解決に向けた事業や取組を行っている。",null,"・自然と共生できるまちづくりや環境問題への対応、山村地域等の活性化、高齢者や女性雇用の促進、健康づくりや介護予防など、豊田市の地域課題解決に資する事業や取組を行っている。",{"$f":"D101","v":"●地域課題解決に向けた事業や取組を行っている。"},"市と連携して行う、地域課題の解決に資する事業の実施回数等",false,1,null,null,{"$f":"'様式2号（認証チェックシート）'!L87","v":"【主な取組内容（2021年度以降）】\n※継続して実施している取組である場合は、開始時期や頻度も記載"},"11、12.8、17.17",null,null,null,3,5,{"$f":"R101+R102+S101","v":14},{"$f":"'様式2号（認証チェックシート）'!K87","v":0},false,1,0,{"$f":"U101","v":0},{"$f":"X101+X102+X103","v":0},{"$f":"Y101+Y102+Z101","v":0},3,5,{"$f":"AB101+AB102+AC101","v":14},{"$f":"'様式2号（認証チェックシート）'!K87","v":0},false,1,0,{"$f":"AE101","v":0},{"$f":"AH101+AH102+AH103","v":0},{"$f":"AI101+AI102+AJ101","v":0},null,null,"①地域課題の解決に資する、複数の取組を実施している：+1点",null,null,"・1－２年以内の実績を確認する。\n【追加加点】\n①複数の取組に協力している：+1点\n②持続性を考慮し、定期的・継続的に協力している：+２点\n＜次世代＞\n①若者・子どもの将来のための取組である：+２点"]
["地域",null,null,"●地域社会とのコミュニケーション機会を設けている。",null,"・地域住民の職場見学や地域学生の職業体験の受け入れ、近隣の学校への出張授業などを実施している。",{"$f":"D102","v":"●地域社会とのコミュニケーション機会を設けている。"},"職場見学等の受け入れ人数、出張授業の実施回数等",{"$f":"IF(#REF!=TRUE,TRUE,FALSE)","v":{"$error":"#REF!"}},1,null,null,null,"4.7、12.8、17.17",null,null,null,6,null,null,{"$f":"'様式2号（認証チェックシート）'!K88","v":0},false,2,0,{"$f":"U102+U103+U104","v":0},null,null,6,null,null,{"$f":"'様式2号（認証チェックシート）'!K88","v":0},false,2,0,{"$f":"AE102+AE103+AE104","v":0},null,null,null,null,"②持続性を考慮し、定期的・継続的に協力している：+２点"]
["地域",null,null,null,null,"・地域在住の外国人のための支援活動（言語対応、生活、雇用面のサポート）をしている。",{"$f":"D102","v":"●地域社会とのコミュニケーション機会を設けている。"},"支援活動の実施件数、支援人数等",false,1,null,null,null,"10.2、17.17",null,null,null,null,null,null,{"$f":"'様式2号（認証チェックシート）'!K89","v":0},false,2,0,null,null,null,null,null,null,{"$f":"'様式2号（認証チェックシート）'!K89","v":0},false,2,0,null,null,null,null,null,"＜次世代＞\n①若者・子どもの将来のための取組である：+２点"]
["地域",null,null,null,null,"・地域の防災・防犯・清掃活動や、高齢者等の見守り活動などに参加している。",{"$f":"D102","v":"●地域社会とのコミュニケーション機会を設けている。"},"活動への参加数、関わった社員の数等",{"$f":"IF(#REF!=TRUE,TRUE,IF(#REF!=TRUE,TRUE,IF(#REF!=TRUE,TRUE,FALSE)))","v":{"$error":"#REF!"}},1,null,null,null,"11.3、17.17",null,null,null,null,null,null,{"$f":"'様式2号（認証チェックシート）'!K90","v":0},null,null,0,null,null,null,null,null,null,{"$f":"'様式2号（認証チェックシート）'!K90","v":0},0,null,0]
[null,"L-4","製品・サービスを通じた地域問題の解決","●地域経済の振興・地域内経済循環に資する製品・サービスを提供している。",null,"・地域資源の積極的利用、地産地消、地産外商に取り組んでいる。",{"$f":"#REF!","v":{"$error":"#REF!"}},"市内事業者からの調達率、市内事業者への発注率等",false,1,null,null,{"$f":"'様式2号（認証チェックシート）'!L91","v":"【主な取組内容】\n※製品・サービスのどの様な特徴が、地域内経済循環に繋がると考えられるかという点も記載\n※当該製品・サービスの貴社事業における位置づけ（従来技術の応用、新規技術として開発、　新たな分野への挑戦、等）についても記載"},"8.4、12.1、12.2",null,null,null,9,9,{"$f":"R105+S105","v":18},{"$f":"'様式2号（認証チェックシート）'!K91","v":0},false,3,0,{"$f":"U105+U106+U107","v":0},{"$f":"X105+X106+X107+X108+X109+X110","v":0},{"$f":"Y105+Z105","v":0},9,9,{"$f":"AB105+AC105","v":18},{"$f":"'様式2号（認証チェックシート）'!K91","v":0},false,3,0,{"$f":"AE105+AE106+AE107","v":0},{"$f":"AH105+AH106+AH107+AH108+AH109+AH110","v":0},{"$f":"AI105+AJ105","v":0},null,null,"＜チャレンジ＞\n①本業とは全く異なる分野に挑戦している：+3点　",null,null,"・ＣＳＲ活動ではなくて商流での取組か、実際に売り上げが立っているか\n【追加加点】\n＜チャレンジ＞\n①本業とは全く異なる分野に挑戦している：+2点　\n②本業の範囲だが、新規分野に挑戦している：+1点　\n※本業の範囲で、これまでの取組の延長線上にある場合は、加点なし\n＜イノベーション＞\n①これまで存在しなかった新製品・サービス、新規の取組である：+2点\n②これまでもあった製品・サービスに改良を加えた取組である：+1点\n※類似の製品・サービス、取組は既に世の中にある場合は、加点なし\n＜地域経済の振興＞\n①製品原料などに、地域資源や地元産品を積極的に活用している：+3点\n②地元事業者と積極的に取引をしたり、協業をしたりしている：+1点","「チャレンジ」について\n・本業の範囲で、これまでの取組の延長線上にある場合は、加点なし\n\n「イノベーション」について\n・類似の製品・サービス、取組は既に地域内にある場合は、加点なし"]
[null,null,null,null,null,"・文化振興、産品販促、観光促進などに資する製品・サービスを提供している。",null,null,null,null,null,null,null,"8.9、12.b、17.17",null,null,null,null,null,null,{"$f":"'様式2号（認証チェックシート）'!K92","v":0},false,2,0,null,null,null,null,null,null,{"$f":"'様式2号（認証チェックシート）'!K92","v":0},false,2,0,null,null,null,null,null,"＜チャレンジ＞\n②本業の範囲だが、新規分野に挑戦している：+２点　"]
["地域",null,null,null,null,"・上記製品・サービスの開発や提供にあたって、産官学や異業種、地域間企業との連携に取り組んでいる",{"$f":"D105","v":"●地域経済の振興・地域内経済循環に資する製品・サービスを提供している。"},"地域経済に資する製品・サービスの提供数等",false,1,null,null,null,17.170000000000002,null,null,null,null,null,null,{"$f":"'様式2号（認証チェックシート）'!K93","v":0},false,3,0,null,null,null,null,null,null,{"$f":"'様式2号（認証チェックシート）'!K93","v":0},false,3,0,null,null,null,null,null,"＜イノベーション＞\n①これまで存在しなかった新製品・サービス、新規の取組である：+3点"]
[null,null,null,null,null,null,null,null,null,null,null,null,null,null,null,null,null,null,null,null,null,false,2,0,null,null,null,null,null,null,null,false,2,0,null,null,null,null,null,"＜イノベーション＞\n②これまでもあった製品・サービスに改良を加えた取組である：+２点"]
[null,null,null,null,null,null,null,null,null,null,null,null,null,null,null,null,null,null,null,null,null,false,3,0,null,null,null,null,null,null,null,false,3,0,null,null,null,null,null,"＜地域経済の振興＞\n①製品原料などに、地域資源や地元産品を積極的に活用している：+3点"]
[null,null,null,null,null,null,null,null,null,null,null,null,null,null,null,null,null,null,null,null,null,false,2,0,null,null,null,null,null,null,null,false,2,0,null,null,null,null,null,"＜地域経済の振興＞\n②地元事業者と積極的に取引をしたり、協業をしたりしている：+２点"]
[]
[]
[null,"自由記述（＊その他、独自のSDGsの取組があれば、こちらにご記入ください。）"]
[]
[null,null,null,null,null,null,null,null,null,null,null,null,null,null,null,null,null,null,null,null,null,null,null,null,null,null,null,null,null,null,null,null,null,null,null,null,null,null,null,null,null,null,"【チャレンジ】\n本業とは全く異なる分野に挑戦している。（2点）　\n本業の範囲だが、新規分野に挑戦している。(1点)　\n本業の範囲で、これまでの取組の延長線上にある（０点）　"]
[null,null,null,null,null,null,null,null,null,null,null,null,null,null,null,null,null,null,null,null,null,null,null,null,null,null,null,null,null,null,null,null,null,null,null,null,null,null,null,null,null,null,"【イノベーション】\nこれまで存在しなかった新製品・サービス、新規の取組である。（2点）\nこれまでもあった製品・サービスに改良を加えた取組である。（1点）\n類似の製品・サービス、取組は既に世の中にある（０点）"]
[null,null,null,null,null,null,null,null,null,null,null,null,null,null,null,null,null,null,null,null,null,null,null,null,null,null,null,null,null,null,null,null,null,null,null,null,null,null,null,null,null,null,"【次世代】\n若者・子どもの将来のための取組である（1点）\n特に特定のターゲットはなくあまねく広くを対象としている（０点）"]
[null,null,null,null,null,null,null,null,null,null,null,null,null,null,null,null,null,null,null,null,null,null,null,null,null,null,null,null,null,null,null,null,null,null,null,null,null,null,null,null,null,null,"【持続性】\n持続性が十分考慮されている（2点）\n持続性は考慮されているが、まだ懸念点が残る（1点）\n一過性の取組である（0点）"]
[null,null,null,null,null,null,null,null,null,null,null,null,null,null,null,null,null,null,null,null,null,null,null,null,null,null,null,null,null,null,null,null,null,null,null,null,null,null,null,null,null,null,"【パートナーシップ】\n1社の取組ではなく、産官学や異業種との連携による取組（1点）\n自社単体の取組である（０点）"]
[]
[]
[]
[]
[]
[]
[]
[]
[]
[]
[]
[null,"今後の重点目標（最低1つ、最大3つまで）"]
[]
[null,"取組項目",null,null,"今後の目標・達成時期",null,null,null,null,null,null,null,"目標達成に向けた取組"]

{"sheet":"【評価】診断結果計算シート","index":4,"n_rows":29,"n_cols":19,"rows_kept":29,"cut":false,"hidden":true,"merged":[[3,12,3,14],[3,7,3,10],[3,15,3,18],[3,4,3,6]]}
[null,null,"豊田市SDGs認証チェックシート"]
[]
[]
[null,null,null,null,"満点（全て記載）",null,null,"【採点結果（全て記載）】",null,null,null,null,"満点（自動配点）",null,null,"【採点結果（自動配点）】"]
[null,null,null,null,"チェック計","加点計","合計","チェック計","加点計","合計","判定",null,"チェック計","加点計","合計","チェック計","加点計","合計","判定"]
[null,null,null,"環境",{"$f":"【評価】_②認証チェックシート!R4","v":25},{"$f":"【評価】_②認証チェックシート!S4","v":30},{"$f":"【評価】_②認証チェックシート!T4","v":55},{"$f":"【評価】_②認証チェックシート!Y4","v":0},{"$f":"【評価】_②認証チェックシート!Z4","v":0},{"$f":"【評価】_②認証チェックシート!AA4","v":0},{"$f":"J6/G6","v":0},"環境",{"$f":"【評価】_②認証チェックシート!AB4","v":25},{"$f":"【評価】_②認証チェックシート!AC4","v":30},{"$f":"【評価】_②認証チェックシート!AD4","v":55},{"$f":"【評価】_②認証チェックシート!AI4","v":0},{"$f":"【評価】_②認証チェックシート!AJ4","v":0},{"$f":"【評価】_②認証チェックシート!AK4","v":0},{"$f":"R6/O6","v":0}]
[null,null,null,"社会",{"$f":"【評価】_②認証チェックシート!R5","v":41},{"$f":"【評価】_②認証チェックシート!S5","v":32},{"$f":"【評価】_②認証チェックシート!T5","v":73},{"$f":"【評価】_②認証チェックシート!Y5","v":0},{"$f":"【評価】_②認証チェックシート!Z5","v":0},{"$f":"【評価】_②認証チェックシート!AA5","v":0},{"$f":"J7/G7","v":0},"社会",{"$f":"【評価】_②認証チェックシート!AB5","v":41},{"$f":"【評価】_②認証チェックシート!AC5","v":32},{"$f":"【評価】_②認証チェックシート!AD5","v":73},{"$f":"【評価】_②認証チェックシート!AI5","v":0},{"$f":"【評価】_②認証チェックシート!AJ5","v":0},{"$f":"【評価】_②認証チェックシート!AK5","v":0},{"$f":"R7/O7","v":0}]
[null,null,null,"ガバナンス",{"$f":"【評価】_②認証チェックシート!R6","v":17},{"$f":"【評価】_②認証チェックシート!S6","v":13},{"$f":"【評価】_②認証チェックシート!T6","v":30},{"$f":"【評価】_②認証チェックシート!Y6","v":0},{"$f":"【評価】_②認証チェックシート!Z6","v":0},{"$f":"【評価】_②認証チェックシート!AA6","v":0},0,"ガバナンス",{"$f":"【評価】_②認証チェックシート!AB6","v":17},{"$f":"【評価】_②認証チェックシート!AC6","v":13},{"$f":"【評価】_②認証チェックシート!AD6","v":30},{"$f":"【評価】_②認証チェックシート!AI6","v":0},{"$f":"【評価】_②認証チェックシート!AJ6","v":0},{"$f":"【評価】_②認証チェックシート!AK6","v":0},0]
[null,null,null,"地域",{"$f":"【評価】_②認証チェックシート!R7","v":24},{"$f":"【評価】_②認証チェックシート!S7","v":17},{"$f":"【評価】_②認証チェックシート!T7","v":41},{"$f":"【評価】_②認証チェックシート!Y7","v":0},{"$f":"【評価】_②認証チェックシート!Z7","v":0},{"$f":"【評価】_②認証チェックシート!AA7","v":0},{"$f":"J9/G9","v":0},"地域",{"$f":"【評価】_②認証チェックシート!AB7","v":24},{"$f":"【評価】_②認証チェックシート!AC7","v":17},{"$f":"【評価】_②認証チェックシート!AD7","v":41},{"$f":"【評価】_②認証チェックシート!AI7","v":0},{"$f":"【評価】_②認証チェックシート!AJ7","v":0},{"$f":"【評価】_②認証チェックシート!AK7","v":0},{"$f":"R9/O9","v":0}]
[null,null,null,"市制度（最大）",null,{"$f":"【評価】_②認証チェックシート!S8","v":8},{"$f":"【評価】_②認証チェックシート!T8","v":8},{"$f":"【評価】_②認証チェックシート!Y8","v":0},{"$f":"【評価】_②認証チェックシート!Z8","v":0},{"$f":"【評価】_②認証チェックシート!AA8","v":0},null,"市制度（最大）",{"$f":"【評価】_②認証チェックシート!AB8","v":0},{"$f":"【評価】_②認証チェックシート!AC8","v":3},{"$f":"【評価】_②認証チェックシート!AD8","v":3},{"$f":"【評価】_②認証チェックシート!AI8","v":0},{"$f":"【評価】_②認証チェックシート!AJ8","v":0},{"$f":"【評価】_②認証チェックシート!AK8","v":0}]
[null,null,null,"合計",{"$f":"SUM(E6:E10)","v":107},{"$f":"SUM(F6:F10)","v":100},{"$f":"SUM(G6:G10)","v":207},{"$f":"SUM(H6:H10)","v":0},{"$f":"SUM(I6:I10)","v":0},{"$f":"SUM(J6:J10)","v":0},{"$f":"J11/G11","v":0},"合計",{"$f":"SUM(M6:M10)","v":107},{"$f":"SUM(N6:N10)","v":95},202,0,0,0,{"$f":"R11/O11","v":0}]
[null,null,null,"判定",null,null,null,null,null,null,{"$f":"IF(K11<0.3,\"認証なし\",IF(K11<0.6,\"ブロンズ認証\",IF(K11<0.8,\"シルバー認証\",\"ゴールド認証\")))","v":"認証なし"},"判定",null,null,null,null,null,null,{"$f":"IF(S11<0.3,\"認証なし\",IF(S11<0.6,\"ブロンズ認証\",IF(S11<0.8,\"シルバー認証\",\"ゴールド認証\")))","v":"認証なし"}]
[]
[]
[]
[]
[]
[]
[]
[]
[]
[]
[null,null,null,"判定",{"$f":"IF(K11>S11,K12,S12)","v":"認証なし"}]
[]
[null,null,null,{"$f":"\"Total: \"&IF(J11>R11,(ROUND(J11/G11*10,0)),(ROUND(R11/O11*10,0)))","v":"Total: 0"},"貴社","80%達成","60%達成","30%達成","非認証"]
[null,null,null,"環境",{"$f":"IF(K6>S6,(ROUND(J6/G6*10,0)),(ROUND(R6/O6*10,0)))","v":0},10,8,6,3]
[null,null,null,"社会",{"$f":"IF(K7>S7,(ROUND(J7/G7*10,0)),(ROUND(R7/O7*10,0)))","v":0},10,8,6,3]
[null,null,null,"ガバナンス",{"$f":"IF(K8>S8,(ROUND(J8/G8*10,0)),(ROUND(R8/O8*10,0)))","v":0},10,8,6,3]
[null,null,null,"地域",{"$f":"IF(K9>S9,(ROUND(J9/G9*10,0)),(ROUND(R9/O9*10,0)))","v":0},10,8,6,3]

{"sheet":"【評価】第4号様式_結果通知書","index":5,"n_rows":35,"n_cols":20,"rows_kept":35,"cut":false,"hidden":true,"merged":[[27,2,27,8],[27,12,27,18],[29,2,31,8],[29,12,31,18],[25,2,25,8],[25,12,25,18],[26,2,26,8],[26,12,26,18],[11,3,11,7],[11,13,11,17],[24,2,24,8],[24,12,24,18],[6,2,6,8],[6,12,6,18],[8,2,9,8],[8,12,9,18],[10,3,10,7],[10,13,10,17]]}
[]
[null,"（様式第４号）"]
[]
[null,null,null,null,null,null,null,null,null,"年　　月　　日"]
[]
[]
[null,null,"豊田市ＳＤＧｓ認証　評価結果のお知らせ",null,null,null,null,null,null,null,null,null,"豊田市SDGs認証　評価結果のお知らせ"]
[]
[null,null,{"$f":"M9","v":"　明治３３年１月０日付けで申請がありました、豊田市ＳＤＧｓ認証の評価結果が確定いたしましたのでお知らせ致します。"},null,null,null,null,null,null,null,null,null,{"$f":"\"　\"&DBCS(TEXT('様式1号（基本情報）'!D4,\"ggge年m月d日\"))&\"付けで申請がありました、豊田市ＳＤＧｓ認証の評価結果が確定いたしましたのでお知らせ致します。\"","v":"　明治３３年１月０日付けで申請がありました、豊田市ＳＤＧｓ認証の評価結果が確定いたしましたのでお知らせ致します。"}]
[]
[null,null,"【申請者】",{"$f":"'様式1号（基本情報）'!C11","v":0},null,null,null,null,null,null,null,null,"【申請者】",{"$f":"D11","v":0}]
[null,null,"【評価結果】",{"$f":"【評価】診断結果計算シート!E23","v":"認証なし"},null,null,null,null,null,null,null,null,"【診断結果】",{"$f":"D12","v":"認証なし"}]
[]
[null,null,null,null,null,null,null,"分野","評価（%）"]
[null,null,null,null,null,null,null,"環境",{"$f":"ROUND(100*IF(【評価】診断結果計算シート!K6>【評価】診断結果計算シート!S6,【評価】診断結果計算シート!K6,【評価】診断結果計算シート!S6),0)","v":0}]
[null,null,null,null,null,null,null,"社会",{"$f":"ROUND(100*IF(【評価】診断結果計算シート!K7>【評価】診断結果計算シート!S7,【評価】診断結果計算シート!K7,【評価】診断結果計算シート!S7),0)","v":0}]
[null,null,null,null,null,null,null,"ガバナンス",{"$f":"ROUND(100*IF(【評価】診断結果計算シート!K8>【評価】診断結果計算シート!S8,【評価】診断結果計算シート!K8,【評価】診断結果計算シート!S8),0)","v":0}]
[null,null,null,null,null,null,null,"地域貢献",{"$f":"ROUND(100*IF(【評価】診断結果計算シート!K9>【評価】診断結果計算シート!S9,【評価】診断結果計算シート!K9,【評価】診断結果計算シート!S9),0)","v":0}]
[null,null,null,null,null,null,null,"総合",{"$f":"ROUND(100*IF(【評価】診断結果計算シート!K11>【評価】診断結果計算シート!S11,【評価】診断結果計算シート!K11,【評価】診断結果計算シート!S11),0)","v":0}]
[]
[]
[]
[]
[]
[null,null,"特に優れておられる点",null,null,null,null,null,null,null,null,null,"特に優れておられる点"]
[]
[null,null,"今後の取組について",null,null,null,null,null,null,null,null,null,"今後の取組について"]
[]
[]
[null,null,"＊問合せ：豊田市未来都市推進課\n　　電話：0565-34-6982\n　　メール：hybrid-city@city.toyota.aichi.jp",null,null,null,null,null,null,null,null,null,"＊問合せ："]
[]
[]
[]
[null,null,null,null,null,null,null,null,null,"以　上",null,null,null,null,null,null,null,null,null,"以　上"]
[null,null,null,null,null,null,null,null,null,"以　上",null,null,null,null,null,null,null,null,null,"以　上"]

{"sheet":"（非表示シート）BCI列プルダウン","index":6,"n_rows":48,"n_cols":10,"rows_kept":48,"cut":false,"hidden":true,"merged":[]}
[null,"B列　ID・分類",null,"C列　ID・分類","D列1","D列2",null,"D列9行",null,"ゴール"]
[null,"TY-E-1　環境マネジメント・コミュニケーション",null,"E-1　環境マネジメント・コミュニケーション","●環境マネジメント体制を構築している。","●自社の環境への取り組みを開示している。",null,{"$f":"IF('様式3号（今後の重点目標）'!$C$18=\"\",\"\",VLOOKUP('様式3号（今後の重点目標）'!$C$18,$D$2:$F$48,2,FALSE))","v":""},null,"1　貧困をなくそう"]
[null,"TY-E-2　気候変動（脱炭素）への取り組み",null,"E-2　気候変動（脱炭素）への取り組み","●脱炭素に向けて、省エネに取り組んでいる。","●脱炭素に向けて再生可能エネルギーの利用を進めている。",null,{"$f":"IF('様式3号（今後の重点目標）'!$C$18=\"\",\"\",VLOOKUP('様式3号（今後の重点目標）'!$C$18,$D$2:$F$48,3,FALSE))","v":""},null,"2　飢餓をゼロに"]
[null,"TY-E-3　水の効率的な利用・管理",null,"E-3　水の効率的な利用・管理","●水の効率的な利用・管理を行っている"," ",null,null,null,"3　すべての人に健康と福祉を"]
[null,"TY-E-4　廃棄物・有害化学物質の管理・３Rの推進",null,"E-4　廃棄物・有害化学物質の管理・３Rの推進","●廃棄物・有害化学物質を適切に管理している。"," ",null,"D列10行",null,"4　質の高い教育をみんなに"]
[null,"TY-E-5　天然資源・生物多様性への配慮",null,"E-5　天然資源・生物多様性への配慮","●天然資源や生物多様性へ配慮している。"," ",null,{"$f":"IF('様式3号（今後の重点目標）'!$C$19=\"\",\"\",VLOOKUP('様式3号（今後の重点目標）'!$C$19,$D$2:$F$48,2,FALSE))","v":""},null,"5　ジェンダー平等を実現しよう"]
[null,"TY-E-6　製品・サービスを通じた環境問題の解決",null,"E-6　製品・サービスを通じた環境問題の解決","●製品・サービスの提供を通じて環境問題の改善に貢献している。"," ",null,{"$f":"IF('様式3号（今後の重点目標）'!$C$19=\"\",\"\",VLOOKUP('様式3号（今後の重点目標）'!$C$19,$D$2:$F$48,3,FALSE))","v":""},null,"6　安全な水とトイレを世界中に"]
[null,"TY-S-1　安全・衛生管理、健康経営",null,"S-1　安全・衛生管理、健康経営","●職場における安全・衛生管理に取り組んでいる。","●健康経営に取り組んでいる",null,null,null,"7　エネルギーをみんなに そしてクリーンに"]
[null,"TY-S-2　多様な人材の活躍",null,"S-2　多様な人材の活躍","●外国人、障がい者、高齢者等、社内の多様な人材の活躍支援に関する取り組みがある。","●社内のハラスメントを防止するための取り組みを進めている。",null,"D列11行",null,"8　働きがいも経済成長も"]
[null,"TY-S-3　女性の活躍促進",null,"S-3　女性の活躍促進","●女性の活躍支援に向けた目標を設定している。","●女性の活躍を支援するための取り組みがある。",null,{"$f":"IF('様式3号（今後の重点目標）'!$C$20=\"\",\"\",VLOOKUP('様式3号（今後の重点目標）'!$C$20,$D$2:$F$48,2,FALSE))","v":""},null,"9　産業と技術革新の基盤をつくろう"]
[null,"TY-S-4　多様な働き方の促進",null,"S-4　多様な働き方の促進","●多様な働き方を促進するための取り組みがある。"," ",null,{"$f":"IF('様式3号（今後の重点目標）'!$C$20=\"\",\"\",VLOOKUP('様式3号（今後の重点目標）'!$C$20,$D$2:$F$48,3,FALSE))","v":""},null,"10　人や国の不平等をなくそう"]
[null,"TY-S-5　従業員の人材育成・能力強化",null,"S-5　従業員の人材育成・能力強化","●従業員に能力開発、教育訓練の機会や人材育成のための仕組みを提供している。"," ",null,null,null,"11　住み続けられるまちづくりを"]
[null,"TY-S-6　サプライヤーへの配慮",null,"S-6　サプライヤーへの配慮","●サプライヤー（取引先）の事業活動や環境・社会への取り組みを理解し、サプライチェーン全体で社会的責任を果たすために取り組んでいる。"," ",null,null,null,"12　つくる責任つかう責任"]
[null,"TY-S-7　顧客に対する配慮",null,"S-7　顧客に対する配慮","●顧客からの要望を聞き入れ・改善するための体制を整備している。","●品質管理に関する取り組みを行っている",null,null,null,"13　気候変動に具体的な対策を"]
[null,"TY-S-8　製品・サービスを通じた社会課題の解決",null,"S-8　製品・サービスを通じた社会課題の解決","●製品・サービスの提供を通じて社会課題の解決に貢献している。"," ",null,null,null,"14　海の豊かさを守ろう"]
[null,"TY-G-1　公正な経済取引",null,"G-1　公正な経済取引","●公正な経済取引を行っている。",null,null,null,null,"15　陸の豊かさも守ろう"]
[null,"TY-G-2　情報セキュリティ",null,"G-2　情報セキュリティ","●情報セキュリティ対策を行っている",null,null,null,null,"16　平和と公正をすべての人に"]
[null,"TY-G-3　企業統治体制の構築",null,"G-3　企業統治体制の構築","●企業統治体制を構築している。",null,null,null,null,"17　パートナーシップで目標を達成しよう"]
[null,"TY-G-4　企業の社会的責任",null,"G-4　企業の社会的責任","●事業によって社会・環境に及ぼす影響に対し、責任を持って対応している。","●SDGsの各種取組を戦略的・持続的に推進する基盤を整備している。"]
[null,"TY-G-5　事業継続と事業継承",null,"G-5　事業継続と事業継承","●事業継続や事業継承に関する取り組みが進められている。"]
[null,"TY-L-1　豊田市内における雇用促進",null,"L-1　豊田における雇用促進","●従業員の1/2以上が豊田市民である (非正規・パートを含む)"," "]
[null,"TY-L-2　豊田市の施策・事業への協力",null,"L-2　豊田市内の地域コミュニティへの配慮","●市の施策・事業に協力している。"]
[null,"TY-L-3　豊田市内の地域コミュニティへの配慮",null,"L-3　豊田における文化・芸術活動の促進","●地域課題解決に向けた事業や取組を行っている。"," ●地域社会とのコミュニケーション機会を設けている。"]
[null,"TY-L-4　製品・サービスを通じた地域問題の解決",null,"L-4　製品・サービスを通じた地域問題の解決","●地域経済に資する製品・サービスを提供している。"," "]
[null,"B列　ID・分類",null,"B列　ID・分類","C列1","C列2",null,{"$f":"IF('様式3号（今後の重点目標）'!$C$19=\"\",\"\",VLOOKUP('様式3号（今後の重点目標）'!$C$19,$D$2:$F$48,2,FALSE))","v":""}]
[null,"TY-S-1　安全・衛生管理、健康経営",null,"TY-S-1　安全・衛生管理、健康経営","●職場における安全・衛生管理に取り組んでいる。","●健康経営に取り組んでいる",null,{"$f":"IF('様式3号（今後の重点目標）'!$C$19=\"\",\"\",VLOOKUP('様式3号（今後の重点目標）'!$C$19,$D$2:$F$48,2,FALSE))","v":""}]
[null,"TY-S-2　多様な人材の活躍",null,"TY-S-2　多様な人材の活躍","●外国人、障がい者、高齢者等、社内の多様な人材の活躍支援に関する取り組みがある。","●社内のハラスメントを防止するための取り組みを進めている。"]
[null,"TY-S-3　女性の活躍促進",null,"TY-S-3　女性の活躍促進","●女性の活躍支援に向けた目標を設定している。","●女性の活躍を支援するための取り組みがある。"]
[null,"TY-S-4　多様な働き方の促進",null,"TY-S-4　多様な働き方の促進","●多様な働き方を促進するための取り組みがある。"," "]
[null,"TY-S-5　従業員の人材育成・能力強化",null,"TY-S-5　従業員の人材育成・能力強化","●従業員に能力開発、教育訓練の機会や人材育成のための仕組みを提供している。"," "]
[null,"TY-S-6　サプライヤーへの配慮",null,"TY-S-6　サプライヤーへの配慮","●サプライヤー（取引先）の事業活動や環境・社会への取り組みを理解し、サプライチェーン全体で社会的責任を果たすために取り組んでいる。"," "]
[null,"TY-S-7　顧客に対する配慮",null,"TY-S-7　顧客に対する配慮","●顧客からの要望を聞き入れ・改善するための体制を整備している。","●品質管理に関する取り組みを行っている"]
[null,"TY-S-8　製品・サービスを通じた社会課題の解決",null,"TY-S-8　製品・サービスを通じた社会課題の解決","●製品・サービスの提供を通じて社会課題の解決に貢献している。"," "]
[]
[null,null,null,null,null,null,null,"C列14行"]
[null,"B列　ID・分類",null,"B列　ID・分類","C列1","C列2",null,""]
[null,"TY-G-1　公正な経済取引",null,"TY-G-1　公正な経済取引","●公正な経済取引を行っている。"]
[null,"TY-G-2　情報セキュリティ",null,"TY-G-2　情報セキュリティ","●情報セキュリティ対策を行っている"]
[null,"TY-G-3　企業統治体制の構築",null,"TY-G-3　企業統治体制の構築","●企業統治体制を構築している。"]
[null,"TY-G-4　企業の社会的責任",null,"TY-G-4　企業の社会的責任","●事業によって社会・環境に及ぼす影響に対し、責任を持って対応している。","●SDGsの各種取組を戦略的・持続的に推進する基盤を整備している。"]
[null,"TY-G-5　事業継続と事業継承",null,"TY-G-5　事業継続と事業継承","●事業継続や事業継承に関する取り組みが進められている。"]
[]
[null,null,null,null,null,null,null,"C列15行"]
[null,"B列　ID・分類",null,"B列　ID・分類","C列1","C列2",null,""]
[null,"TY-L-1　豊田市内における雇用促進",null,"TY-L-1　豊田における雇用促進","●従業員の1/2以上が豊田市民である (非正規・パートを含む)"," ",null,""]
[null,"TY-L-2　豊田市の施策・事業への協力",null,"TY-L-2　豊田市内の地域コミュニティへの配慮","●市の施策・事業に協力している。"]
[null,"TY-L-3　豊田市内の地域コミュニティへの配慮",null,"TY-L-3　豊田における文化・芸術活動の促進","●地域課題解決に向けた事業や取組を行っている。"," ●地域社会とのコミュニケーション機会を設けている。"]
[null,"TY-L-4　製品・サービスを通じた地域問題の解決",null,"TY-L-4　製品・サービスを通じた地域問題の解決","●地域経済に資する製品・サービスを提供している。"," "]